Workbook

Sheet Index
B1: Overall Number of Valid Samples | C1: Overall Meets ASHRAE55 | D1: Overall Hot/Cold | E1: Overall % Meets ASHRAE55 | F1: Maximum Number of Samples | G1: % Valid Samples Provided | H1: Adjustment Factor | I1: Adjusted % Meets ASHRAE55 | J1: Equivalent Number of Samples Meet ASHRAE55
A2: Total | B2: 19772 | C2: 19024 | D2: 748 | E2: =C2/B2 -> 0.9621687234 | F2: 20331 | G2: =B2/F2 -> 0.9725050416 | H2: 1 | I2: =E2*H2 -> 0.9621687234 | J2: 19562
A6: INDEX | B6: Number of Valid Samples | C6: Meets ASHRAE 55 | D6: Hot / Cold | E6: % Meets ASHRAE 55 | F6: Total Number of Samples | G6: Number of Valid Samples | H6: Number of Invalid Samples ('0' Degrees) | I6: % Invalid Samples
A7: IE_Level_1 | B7: 6631 | C7: 6411 | D7: 220 | E7: 0.9668225004 | F7: 6777 | G7: 6631 | H7: 146 | I7: 0.02154345581
A8: IE_Level_2 | B8: 6550 | C8: 6242 | D8: 308 | E8: 0.9529770992 | F8: 6777 | G8: 6550 | H8: 227 | I8: 0.03349564704
A9: IE_Level_3 | B9: 6591 | C9: 6371 | D9: 220 | E9: 0.9666211501 | F9: 6777 | G9: 6591 | H9: 186 | I9: 0.02744577247

Sheet QLD & TAS Local Public Holidays (hidden)
B2: Queensland Local Public Holidays | E2: Tasmania Local Public Holidays
B3: Name of Public Holiday | C3: Region it applies to: | E3: Name of Public Holiday | F3: Region it applies to:
B4: Alpha Annual Show | C4: Barcaldine Region - Alpha and Jericho Townships | E4: Royal Hobart Regatta | F4: Hobart - Second Monday in February. South of & including Oatlands and Swansea excluding Bronte Park, Catagunya, Strathgordon, Tarraleah, Wayatinah & West Coast.
B5: Bundaberg Annual Show | C5: Bundaberg Region - within the post codes of 4670 and 4660 | E5: King Island Show | F5: King Island - First Tuesday in March
B6: Royal Queensland Show | C6: Bundaberg Region - within the postcode of 4671 | E6: AGFEST | F6: Circular Head - Friday following the first Thursday in May. Municipal area of Circular Head only.
B7: Cairns Annual Show | C7: Cairns Region | E7: Burnie Show | F7: Burnie - Friday before the first Saturday in October. Municipal areas of Burnie, Waratah-Wynyard and West Coast.
B8: Tully and District Annual Show | C8: Cassowary Coast Region - Division 1 and those parts of Divisions 2 & 3 generally south of the Walter Hill Range | E8: Royal Launceston Show | F8: Launceston - Thursday before the second Saturday in October. Municipal areas of Break O'Day, Dorset, George Town, Launceston, Meander Valley, Northern Midlands, West Tamar.
B9: Innisfail and District Annual Show | C9: Cassowary Coast Region - Divisions 4, 5 & 6 and those parts of Divisions 2 & 3 generally north of the Walter Hill Range | E9: Flinders Island Show | F9: Flinders Island - Friday before the third Saturday in October - Municipal area of Flinders Island.
B10: Capella & District Annual Show | C10: Central Highlands Region - Capella & Tieri | E10: Royal Hobart Show | F10: Hobart - The Thursday before the fourth Saturday in October. All of Tasmania south of and including Oatlands and Swansea also Bronte Park, Strathgordon, Tarreleah and Wayatinah - excludes West Coast.
B11: Emerald Annual Show | C11: Central Highlands Region - Townships of Emerald, Comet, Gemfields, Blackwater, Bluff, Dingo, Duaringa | E11: Recreation Day | F11: All parts of the State which do not observe Royal Hobart Regatta - First Monday in November
B12: Springsure & District Show | C12: Central Highlands Region - Townships of Springsure & Rolleston | E12: Devonport Show | F12: Devonport - First Monday in November
B13: Charters Towers Annual Show | C13: Charters Towers Region
B14: Royal Queensland Show | C14: City of Brisbane
B15: Gold Coast Annual Show | C15: City of Gold Coast
B16: Ipswich Annual Show | C16: City of Ipswich
B17: Mount Isa Annual Show | C17: City of Mount Isa
B18: Royal Queensland Show | C18: City of Redland
B19: Townsville Annual Show | C19: City of Townsville
B20: Fraser Coast Annual Show | C20: Fraser Coast Region
B21: Gladstone Annual Show | C21: Gladstone Region
B22: Goondiwindi Annual Show | C22: Goondiwindi Region - for that area covered by the former Goondiwindi Town Council & the former Waggamba Shire
B23: Royal Queensland Show | C23: Goondiwindi Region - for that area covered by the former Shire of Inglewood within the boundaries of the parishes of Wyemo, Beebo, Texas, Silverspur, Arcot, Gunyan, Bonshaw, Maiden Head, Aitkin's Flat & the town of Texas
B24: Inglewood Annual Show | C24: Goondiwindi Region - that area covered by the former Shire of Inglewood excluding that part of the former shire within the boundaries of the parishes of Wyemo, Beebo, Texas, Silverspur, Arcot, Gunyan, Bonshaw, Maiden Head, Aitkin's Flat & the town of Texas
B25: Royal Queensland Show | C25: Gympie Region - Goomeri Township, Parish of Goomeribong
B26: Gympie Annual Show | C26: Gympie Region excluding Goomeri Township, Parish of Goomeribong
B27: Clermont Show Day | C27: Isaac Region - Moranbah, Clermont, Middlemount, Dysart, Kilcummin and rural areas
B28: Mackay Show Day | C28: Isaac Region - Nebo, Glenden, Coppabella, Coastal Region, Clairview and Clairview North
B29: Rockhampton Show Day | C29: Isaac Region - St Lawrence, South of Clairview and rural areas
B30: Royal Queensland Show | C30: Lockyer Valley Region
B31: Royal Queensland Show | C31: Logan City
B32: Mackay Annual Show | C32: Mackay Region
B33: Roma Annual Show | C33: Maranoa Region - from the eastern boundary of the Council including the towns of Jackson, Yuleba, Wallumbilla, Roma, Hodgson & Muckadilla. North of Roma to the northern boundary of the Council including the town of Injune & the area known as Bymount and South of Roma to the Southern boundary of the Maranoa region including the township of Surat and the area East and South of Surat Township
B34: Mitchell Annual Show | C34: Maranoa Region - west of Amby to the western boundary of the Council including the towns of Mitchell & Mungallala. South of Amby to the southern boundary of the Maranoa Region including the area known as Dunkeld and North of Amby to the Northern boundary
B35: Mossman Annual Show | C35: Mareeba Shire - That part of Mareeba Shire included within the Parishes of Mowbray, Salisbury, Riflemead and that part of the Parish of Garioch located north of Hunter and Rifle Creeks
B36: Atherton Annual Show | C36: Mareeba Shire - That part of the Mareeba Shire included within the Parishes of Irvinebank, Myosotis and Western.
B37: Cairns Annual Show | C37: Mareeba Shire excluding the Parishes of Irvinebank, Myosotis, Western, Mowbray, Salisbury, Riflemead and that part of the Parish of Garioch located north of Hunter and Rifle Creeks
B38: Royal Queensland Show | C38: Moreton Bay Region
B39: Royal Queensland Show | C39: North Burnett Region - Biggenden, Eidsvold, Gayndah, Mount Perry and Monto Areas
B40: Mundubbera Annual Show | C40: North Burnett Region - Mundubbera Area
B41: Northern Peninsula Area Show | C41: Northern Peninsula Area Region
B42: Rockhampton Agricultural Show | C42: Rockhampton Region
B43: Royal Queensland Show | C43: Scenic Rim Region
B44: Cairns Annual Show | C44: Shire of Aurukun
B45: Royal Queensland Show | C45: Shire of Balonne
B46: Theodore Annual Show | C46: Shire of Banana - That part of the Shire covered by the parishes of Mayne, Quakit, Gibber Gunyah, Martin, Highworth, Southend, Coteeda, Blackman, Cracow, Dresden, Mungungal, Camboon, Okangal, Walloon, Woolton, Woolthorpe, Warnoah, Belmont, Colombo, Tarramba, Barfield, Rhydding, Roundstone, Capayan, and that part of the parish of Banana described as L110/FN261, L109/FN261, L48/FN283, L53/FN423, L1&2/RP892597, L1/RP612740, L1-6/RP613366, L2/RP612740, L127/FN470 & Pt L13/FN469
B47: Theodore Annual Show | C47: Shire of Banana - That part of the Shire covered by the parishes of Mayne, Quakit, Gibber Gunyah, Martin, Highworth, Southend, Coteeda, Blackman, Cracow, Dresden, Mungungal, Camboon, Okangal, Walloon, Woolton, Woolthorpe, Warnoah, Belmont, Colombo, Tarramba, Barfield, Rhydding, Roundstone, Capayan, and that part of the parish of Banana described as L110/FN261, L109/FN261, L48/FN283, L53/FN423, L1&2/RP892597, L1/RP612740, L1-6/RP613366, L2/RP612740, L127/FN470 & Pt L13/FN469
B48: Callide Valley Agricultural and Pastoral Show | C48: Shire of Banana - that part of the shire covering the parishes of Annandale, Craiglands, Dumgree, Earlsfield, Greycliffe, Spier, Thalberg, Callide, Prairie, Coreen, Kooingal, Scoria, Kroombit, Clifford, Kariboe, Grevillea, Prospect, Tiamby, Moura & Kianga
B49: Calllide Valley Agricultural and Pastoral Show | C49: Shire of Banana - that part of the shire covering the parishes of Thuriba, Olinda, Rannes, Benleith, Granville, Woolein, Fairview, Cottenham, Wright, Perch, Neimen & the parish of Banana excluding L110/FN261, L109/FN261, L48/FN283, L53/FN423, L1&2/RP892597, L1/RP612740, L1-6/RP613366, L2/RP612740, L127/FN470 & Pt L13/FN469
B50: Rockhampton Annual Show | C50: Shire of Banana - that part of the shire covering the parishes of Westwood, Fleetwood, Moongan, Dundee, Bunerba, Ulogie, Manton, Don & Bundalba
B51: Taroom Annual Show | C51: Shire of Banana - that part of the shire formerly known as Div 1 of Taroom Shire
B52: Burdekin Annual Show | C52: Shire of Burdekin
B53: Normanton Show Day | C53: Shire of Carpentaria
B54: Cloncurry & District Annual Show | C54: Shire of Cloncurry
B55: Cooktown Agricultural Show | C55: Shire of Cook
B56: Mossman Annual Show | C56: Shire of Douglas
B57: Hughenden Show | C57: Shire of Flinders
B58: Ingham Annual Show | C58: Shire of Hinchinbrook
B59: Cairns Annual Show | C59: Shire of Hope Vale
B60: Rockhampton and District Show | C60: Shire of Livingstone
B61: Cairns Annual Show | C61: Shire of Mapoon
B62: Mount Isa Annual Show | C62: Shire of Mornington
B63: Charleville & District Annual Show | C63: Shire of Murweh
B64: Cairns Annual Show | C64: Shire of Napranum
B65: Noosa Country Show | C65: Shire of Noosa
B66: Pormpuraaw Show Day | C66: Shire of Pormpuraaw
B67: Richmond Annual Field Day | C67: Shire of Richmond
B68: Torres Strait Festival Show Day | C68: Shire of Torres
B69: Winton Annual Show | C69: Shire of Winton
B70: Rockhampton Agricultural Show | C70: Shire of Woorabinda
B71: Cairns Annual Show | C71: Shire of Yarrabah
B72: Royal Queensland Show | C72: Somerset Region
B73: Royal Queensland Show | C73: South Burnett Region
B74: Stanthorpe Annual Show | C74: Southern Downs Region - the area of the former Stanthorpe Shire and the area of the village of Dalveen
B75: Allora Annual Show | C75: Southern Downs Region - the area of the former Warwick Shire - Division 1
B76: Killarney Annual Show | C76: Southern Downs Region - the area of the former Warwick Shire - Division 3 (excluding the urban area of Warwick City and the locality of Murray's Bridge)
B77: Warwick Annual Show | C77: Southern Downs Region - the area of the former Warwick Shire - Divisions 2, 5 & 6, Division 3 (being the urban area of Warwick City and the locality of Murray's Bridge), Division 4 (excluding the village of Dalveen)
B78: Maleny Annual Show | C78: Sunshine Coast Region - the area of the former Caloundra City Council
B79: Sunshine Coast Agricultural Show | C79: Sunshine Coast Region - the area of the former Maroochy Shire
B80: Atherton Annual Show | C80: Tablelands Region
B81: Royal Queensland Show | C81: Toowoomba Region - that part of the Toowoomba Regional Council area covered by Yarraman, Upper Yarraman & Cooyar
B82: Toowoomba Royal Show | C82: Toowoomba Region - Toowoomba Regional Council area excluding the Yarraman, Upper Yarraman & Cooyar areas
B83: Chinchilla Annual Show | C83: Western Downs Region - Chinchilla
B84: Dalby & District Annual Show | C84: Western Downs Region - Dalby
B85: Miles & District Show | C85: Western Downs Region - Miles
B86: Royal Queensland Show | C86: Western Downs Region - Tara
B87: Collinsville Annual Show | C87: Whitsunday Region - that area formerly known as that part of Div 3 of the Shire of Bowen south of the Bogie River from its confluence with the Burdekin River to its source and then easterly by the Clarke Range to the eastern boundary of the Shire
B88: Bowen Annual Show | C88: Whitsunday Region - the area formerly known as Divisions 1 & 2 of the Shire of Bowen and that part of Division 3 north of the Bogie River from its confluence with the Burdekin River to its source and then easterly by the Clarke Range to the eastern boundary of the Shire
B89: Whitsunday Show | C89: Whitsunday Region - the area formerly known as Shire of Whitsunday
B90: Weipa Fishing Classic | C90: Weipa Town Area

Sheet Read Me
G7: Department of Planning and Environment | L7: T (02) 9995 5000
G8: 4 Parramatta Square | L8: E nabers@environment.nsw.gov.au
G9: 12 Darcy Street | L9: nabers.gov.au
G10: Parramatta NSW 2150
B11: NABERS Indoor Environment Ratings for Office Buildings Annual Monitoring Results Calculator
B17: Version: | C17: 4.2 | D17: Date: | E17: 2025-02-03
B19: Instructions
B20: 0. The process starts from "Run_Macro" tab. 1. Please complete the Building Information and Data Information sections on "Run_Macro" tab. 1.1 Please choose this building's State from the drop-down menu; 1.2 Enter the Number of Floors required to be tested (you may find this value from NABERS Rate -> Building Details -> Sampling Locations); 1.3 Enter the Number of Required Samples per floor (this can also be found from NABERS Rate); 1.4 Determine the Rating Period of this IE rating (the rating period needs to be the same with your data entry in NABERS Rate); 1.5 Select Time Interval for your annual monitoring data from the dropdown list. 2. Copy and paste your sensor temperature data into the Input Sheet named with "IE_Level_x". 2.1 Please ensure the Date data in column is correctly formatted as "Date", e.g. dd-mm-yyyy or dd/mm/yyyy, etc.; 2.2 Please ensure the Time data in column is correctly formatted as "Time", e.g. hh:mm:ss, hh:mm AM/PM, etc.; 2.3 For each Location column, please copy and paste your temperature data from each individual sensor on that floor; 2.4 You can use multiple Input Sheets to suit your purposes - just make copies of the original one; 2.5 Ensure each worksheet's name starts with the word "IE*". You can add other information to the end of the Input Sheet name if required (month/sensor#/floor) but ensure there are no spaces used in the worksheet name. E.g. "IE_Level_2". 2.6 You may provide less sampling data than required, please refer to Rules section 6.4.3 (2) Proportional inclusion of annual temperature data. The adjusted score will be automatically calculated by the Macro. 3. Click on macro button in the "Run_Macro" tab. Reports may take up to a minute to run. 4. Results are presented on "Results for NABERS Rate" tab. 4.1 Please transfer the highlighted two values to the NABERS Rate accordingly in Thermal Services -> Thermal Services Results section; 4.2 You may expect the percentage value for "Percentage of samples compliant with ASHRAE 55-2013:" and "Annual monitoring result:" should be the same in this Calculator and NABERS Rate.
W823: Xiaofeng Li

Sheet Public_Holiday
A1: Date | B1: Holiday Name | C1: Jurisdiction | D1: Combined
A2: 2014-01-01 | B2: New Year's Day | C2: nat | D2: =Query1[[#This Row],[Date]]&""&Query1[[#This Row],[Jurisdiction]] -> 41640nat
A3: 2014-01-27 | B3: Australia Day | C3: nat | D3: =Query1[[#This Row],[Date]]&""&Query1[[#This Row],[Jurisdiction]] -> 41666nat
A4: 2014-03-03 | B4: Labour Day | C4: Western Australia | D4: =Query1[[#This Row],[Date]]&""&Query1[[#This Row],[Jurisdiction]] -> 41701Western Australia
A5: 2014-03-10 | B5: Eight Hours Day | C5: Tasmania | D5: =Query1[[#This Row],[Date]]&""&Query1[[#This Row],[Jurisdiction]] -> 41708Tasmania
A6: 2014-03-10 | B6: Labour Day | C6: Victoria | D6: =Query1[[#This Row],[Date]]&""&Query1[[#This Row],[Jurisdiction]] -> 41708Victoria
A7: 2014-03-10 | B7: March public holiday | C7: South Australia | D7: =Query1[[#This Row],[Date]]&""&Query1[[#This Row],[Jurisdiction]] -> 41708South Australia
A8: 2014-03-10 | B8: Canberra Day | C8: Australian Capital Territory | D8: =Query1[[#This Row],[Date]]&""&Query1[[#This Row],[Jurisdiction]] -> 41708Australian Capital Territory
A9: 2014-04-18 | B9: Good Friday | C9: nat | D9: =Query1[[#This Row],[Date]]&""&Query1[[#This Row],[Jurisdiction]] -> 41747nat
A10: 2014-04-19 | B10: Easter Saturday | C10: nat | D10: =Query1[[#This Row],[Date]]&""&Query1[[#This Row],[Jurisdiction]] -> 41748nat
A11: 2014-04-20 | B11: Easter Sunday | C11: New South Wales|Victoria | D11: =Query1[[#This Row],[Date]]&""&Query1[[#This Row],[Jurisdiction]] -> 41749New South Wales|Victoria
A12: 2014-04-21 | B12: Easter Monday | C12: nat | D12: =Query1[[#This Row],[Date]]&""&Query1[[#This Row],[Jurisdiction]] -> 41750nat
A13: 2014-04-22 | B13: Easter Tuesday | C13: Tasmania | D13: =Query1[[#This Row],[Date]]&""&Query1[[#This Row],[Jurisdiction]] -> 41751Tasmania
A14: 2014-04-25 | B14: Anzac Day | C14: nat | D14: =Query1[[#This Row],[Date]]&""&Query1[[#This Row],[Jurisdiction]] -> 41754nat
A15: 2014-05-05 | B15: May Day | C15: Northern Territory | D15: =Query1[[#This Row],[Date]]&""&Query1[[#This Row],[Jurisdiction]] -> 41764Northern Territory
A16: 2014-06-02 | B16: Western Australia Day | C16: Western Australia | D16: =Query1[[#This Row],[Date]]&""&Query1[[#This Row],[Jurisdiction]] -> 41792Western Australia
A17: 2014-06-09 | B17: Queen's Birthday | C17: Australian Capital Territory|South Australia|Tasmania|Victoria|New South Wales|Queensland|Northern Territory | D17: =Query1[[#This Row],[Date]]&""&Query1[[#This Row],[Jurisdiction]] -> 41799Australian Capital Territory|South Australia|Tasmania|Victoria|New South Wales|Queensland|Northern Territory
A18: 2014-08-04 | B18: Picnic Day | C18: Northern Territory | D18: =Query1[[#This Row],[Date]]&""&Query1[[#This Row],[Jurisdiction]] -> 41855Northern Territory
A19: 2014-09-29 | B19: Queen's Birthday | C19: Western Australia | D19: =Query1[[#This Row],[Date]]&""&Query1[[#This Row],[Jurisdiction]] -> 41911Western Australia
A20: 2014-09-29 | B20: Family & Community Day | C20: Australian Capital Territory | D20: =Query1[[#This Row],[Date]]&""&Query1[[#This Row],[Jurisdiction]] -> 41911Australian Capital Territory
A21: 2014-10-06 | B21: Labour Day | C21: Australian Capital Territory|New South Wales|Queensland|South Australia | D21: =Query1[[#This Row],[Date]]&""&Query1[[#This Row],[Jurisdiction]] -> 41918Australian Capital Territory|New South Wales|Queensland|South Australia
A22: 2014-11-04 | B22: Melbourne Cup Day | C22: Victoria | D22: =Query1[[#This Row],[Date]]&""&Query1[[#This Row],[Jurisdiction]] -> 41947Victoria
A23: 2014-12-24 | B23: Christmas Eve | C23: South Australia | D23: =Query1[[#This Row],[Date]]&""&Query1[[#This Row],[Jurisdiction]] -> 41997South Australia
A24: 2014-12-25 | B24: Christmas Day | C24: nat | D24: =Query1[[#This Row],[Date]]&""&Query1[[#This Row],[Jurisdiction]] -> 41998nat
A25: 2014-12-26 | B25: Boxing Day | C25: nat | D25: =Query1[[#This Row],[Date]]&""&Query1[[#This Row],[Jurisdiction]] -> 41999nat
A26: 2014-12-26 | B26: Proclamation Day | C26: South Australia | D26: =Query1[[#This Row],[Date]]&""&Query1[[#This Row],[Jurisdiction]] -> 41999South Australia
A27: 2014-12-31 | B27: New Year's Eve | C27: South Australia | D27: =Query1[[#This Row],[Date]]&""&Query1[[#This Row],[Jurisdiction]] -> 42004South Australia
A28: 2015-01-01 | B28: New Year's Day | C28: nat | D28: =Query1[[#This Row],[Date]]&""&Query1[[#This Row],[Jurisdiction]] -> 42005nat
A29: 2015-01-26 | B29: Australia Day | C29: nat | D29: =Query1[[#This Row],[Date]]&""&Query1[[#This Row],[Jurisdiction]] -> 42030nat
A30: 2015-03-02 | B30: Labour Day | C30: Western Australia | D30: =Query1[[#This Row],[Date]]&""&Query1[[#This Row],[Jurisdiction]] -> 42065Western Australia
A31: 2015-03-09 | B31: Eight Hours Day | C31: Tasmania | D31: =Query1[[#This Row],[Date]]&""&Query1[[#This Row],[Jurisdiction]] -> 42072Tasmania
A32: 2015-03-09 | B32: Labour Day | C32: Victoria | D32: =Query1[[#This Row],[Date]]&""&Query1[[#This Row],[Jurisdiction]] -> 42072Victoria
A33: 2015-03-09 | B33: Canberra Day | C33: Australian Capital Territory | D33: =Query1[[#This Row],[Date]]&""&Query1[[#This Row],[Jurisdiction]] -> 42072Australian Capital Territory
A34: 2015-03-09 | B34: March public holiday | C34: South Australia | D34: =Query1[[#This Row],[Date]]&""&Query1[[#This Row],[Jurisdiction]] -> 42072South Australia
A35: 2015-04-03 | B35: Good Friday | C35: nat | D35: =Query1[[#This Row],[Date]]&""&Query1[[#This Row],[Jurisdiction]] -> 42097nat
A36: 2015-04-04 | B36: Easter Saturday | C36: Australian Capital Territory|New South Wales|South Australia|Queensland|Northern Territory|Victoria | D36: =Query1[[#This Row],[Date]]&""&Query1[[#This Row],[Jurisdiction]] -> 42098Australian Capital Territory|New South Wales|South Australia|Queensland|Northern Territory|Victoria
A37: 2015-04-04 | B37: Easter Saturday | C37: nat | D37: =Query1[[#This Row],[Date]]&""&Query1[[#This Row],[Jurisdiction]] -> 42098nat
A38: 2015-04-05 | B38: Easter Sunday | C38: Australian Capital Territory|New South Wales|Victoria | D38: =Query1[[#This Row],[Date]]&""&Query1[[#This Row],[Jurisdiction]] -> 42099Australian Capital Territory|New South Wales|Victoria
A39: 2015-04-05 | B39: Easter Sunday | C39: New South Wales|Victoria | D39: =Query1[[#This Row],[Date]]&""&Query1[[#This Row],[Jurisdiction]] -> 42099New South Wales|Victoria
A40: 2015-04-06 | B40: Easter Monday | C40: nat | D40: =Query1[[#This Row],[Date]]&""&Query1[[#This Row],[Jurisdiction]] -> 42100nat
A41: 2015-04-07 | B41: Easter Tuesday | C41: Tasmania | D41: =Query1[[#This Row],[Date]]&""&Query1[[#This Row],[Jurisdiction]] -> 42101Tasmania
A42: 2015-04-25 | B42: Anzac Day | C42: nat | D42: =Query1[[#This Row],[Date]]&""&Query1[[#This Row],[Jurisdiction]] -> 42119nat
A43: 2015-04-27 | B43: Anzac Day | C43: Western Australia | D43: =Query1[[#This Row],[Date]]&""&Query1[[#This Row],[Jurisdiction]] -> 42121Western Australia
A44: 2015-05-04 | B44: May Day | C44: Northern Territory | D44: =Query1[[#This Row],[Date]]&""&Query1[[#This Row],[Jurisdiction]] -> 42128Northern Territory
A45: 2015-06-01 | B45: Western Australia Day | C45: Western Australia | D45: =Query1[[#This Row],[Date]]&""&Query1[[#This Row],[Jurisdiction]] -> 42156Western Australia
A46: 2015-06-08 | B46: Queen's Birthday | C46: Australian Capital Territory|South Australia|Tasmania|Victoria|New South Wales|Queensland|Northern Territory | D46: =Query1[[#This Row],[Date]]&""&Query1[[#This Row],[Jurisdiction]] -> 42163Australian Capital Territory|South Australia|Tasmania|Victoria|New South Wales|Queensland|Northern Territory
A47: 2015-06-08 | B47: Queen's Birthday | C47: Australian Capital Territory|New South Wales|Northern Territory|Queensland|South Australia|Tasmania|Victoria | D47: =Query1[[#This Row],[Date]]&""&Query1[[#This Row],[Jurisdiction]] -> 42163Australian Capital Territory|New South Wales|Northern Territory|Queensland|South Australia|Tasmania|Victoria
A48: 2015-08-03 | B48: Picnic Day | C48: Northern Territory | D48: =Query1[[#This Row],[Date]]&""&Query1[[#This Row],[Jurisdiction]] -> 42219Northern Territory
A49: 2015-09-28 | B49: Queen's Birthday | C49: Western Australia | D49: =Query1[[#This Row],[Date]]&""&Query1[[#This Row],[Jurisdiction]] -> 42275Western Australia
A50: 2015-09-28 | B50: Family & Community Day | C50: Australian Capital Territory | D50: =Query1[[#This Row],[Date]]&""&Query1[[#This Row],[Jurisdiction]] -> 42275Australian Capital Territory
A51: 2015-10-02 | B51: AFL GrandFinal | C51: Victoria | D51: =Query1[[#This Row],[Date]]&""&Query1[[#This Row],[Jurisdiction]] -> 42279Victoria
A52: 2015-10-05 | B52: Labour Day | C52: Australian Capital Territory|New South Wales|Queensland|South Australia | D52: =Query1[[#This Row],[Date]]&""&Query1[[#This Row],[Jurisdiction]] -> 42282Australian Capital Territory|New South Wales|Queensland|South Australia
A53: 2015-11-03 | B53: Melbourne Cup Day | C53: Victoria | D53: =Query1[[#This Row],[Date]]&""&Query1[[#This Row],[Jurisdiction]] -> 42311Victoria
A54: 2015-12-24 | B54: Christmas Eve | C54: South Australia | D54: =Query1[[#This Row],[Date]]&""&Query1[[#This Row],[Jurisdiction]] -> 42362South Australia
A55: 2015-12-25 | B55: Christmas Day | C55: nat | D55: =Query1[[#This Row],[Date]]&""&Query1[[#This Row],[Jurisdiction]] -> 42363nat
A56: 2015-12-25 | B56: Christmas Day | C56: Australian Capital Territory|South Australia|Tasmania|Victoria|New South Wales|Queensland|Northern Territory | D56: =Query1[[#This Row],[Date]]&""&Query1[[#This Row],[Jurisdiction]] -> 42363Australian Capital Territory|South Australia|Tasmania|Victoria|New South Wales|Queensland|Northern Territory
A57: 2015-12-28 | B57: Proclamation Day | C57: South Australia | D57: =Query1[[#This Row],[Date]]&""&Query1[[#This Row],[Jurisdiction]] -> 42366South Australia
A58: 2015-12-28 | B58: Boxing Day | C58: Australian Capital Territory|Tasmania|Victoria|New South Wales|Queensland|Northern Territory|Western Australia | D58: =Query1[[#This Row],[Date]]&""&Query1[[#This Row],[Jurisdiction]] -> 42366Australian Capital Territory|Tasmania|Victoria|New South Wales|Queensland|Northern Territory|Western Australia
A59: 2015-12-31 | B59: New Year's Eve | C59: South Australia | D59: =Query1[[#This Row],[Date]]&""&Query1[[#This Row],[Jurisdiction]] -> 42369South Australia
A60: 2016-01-01 | B60: New Year's Day | C60: nat | D60: =Query1[[#This Row],[Date]]&""&Query1[[#This Row],[Jurisdiction]] -> 42370nat
A61: 2016-01-26 | B61: Australia Day | C61: nat | D61: =Query1[[#This Row],[Date]]&""&Query1[[#This Row],[Jurisdiction]] -> 42395nat
A62: 2016-03-07 | B62: Labour Day | C62: Western Australia | D62: =Query1[[#This Row],[Date]]&""&Query1[[#This Row],[Jurisdiction]] -> 42436Western Australia
A63: 2016-03-14 | B63: Labour Day | C63: Victoria | D63: =Query1[[#This Row],[Date]]&""&Query1[[#This Row],[Jurisdiction]] -> 42443Victoria
A64: 2016-03-14 | B64: Canberra Day | C64: Australian Capital Territory | D64: =Query1[[#This Row],[Date]]&""&Query1[[#This Row],[Jurisdiction]] -> 42443Australian Capital Territory
A65: 2016-03-14 | B65: March public holiday | C65: South Australia | D65: =Query1[[#This Row],[Date]]&""&Query1[[#This Row],[Jurisdiction]] -> 42443South Australia
A66: 2016-03-14 | B66: Eight Hours Day | C66: Tasmania | D66: =Query1[[#This Row],[Date]]&""&Query1[[#This Row],[Jurisdiction]] -> 42443Tasmania
A67: 2016-03-25 | B67: Good Friday | C67: nat | D67: =Query1[[#This Row],[Date]]&""&Query1[[#This Row],[Jurisdiction]] -> 42454nat
A68: 2016-03-26 | B68: Easter Saturday | C68: Australian Capital Territory|New South Wales|South Australia|Victoria|Queensland|Northern Territory | D68: =Query1[[#This Row],[Date]]&""&Query1[[#This Row],[Jurisdiction]] -> 42455Australian Capital Territory|New South Wales|South Australia|Victoria|Queensland|Northern Territory
A69: 2016-03-27 | B69: Easter Sunday | C69: Australian Capital Territory|New South Wales|Victoria | D69: =Query1[[#This Row],[Date]]&""&Query1[[#This Row],[Jurisdiction]] -> 42456Australian Capital Territory|New South Wales|Victoria
A70: 2016-03-28 | B70: Easter Tuesday | C70: Tasmania | D70: =Query1[[#This Row],[Date]]&""&Query1[[#This Row],[Jurisdiction]] -> 42457Tasmania
A71: 2016-03-28 | B71: Easter Monday | C71: nat | D71: =Query1[[#This Row],[Date]]&""&Query1[[#This Row],[Jurisdiction]] -> 42457nat
A72: 2016-04-25 | B72: Anzac Day | C72: nat | D72: =Query1[[#This Row],[Date]]&""&Query1[[#This Row],[Jurisdiction]] -> 42485nat
A73: 2016-05-02 | B73: Labour Day | C73: Queensland | D73: =Query1[[#This Row],[Date]]&""&Query1[[#This Row],[Jurisdiction]] -> 42492Queensland
A74: 2016-05-02 | B74: May Day | C74: Northern Territory | D74: =Query1[[#This Row],[Date]]&""&Query1[[#This Row],[Jurisdiction]] -> 42492Northern Territory
A75: 2016-06-06 | B75: Western Australia Day | C75: Western Australia | D75: =Query1[[#This Row],[Date]]&""&Query1[[#This Row],[Jurisdiction]] -> 42527Western Australia
A76: 2016-06-13 | B76: Queen's Birthday | C76: Australian Capital Territory|New South Wales|Northern Territory|South Australia|Tasmania|Victoria | D76: =Query1[[#This Row],[Date]]&""&Query1[[#This Row],[Jurisdiction]] -> 42534Australian Capital Territory|New South Wales|Northern Territory|South Australia|Tasmania|Victoria
A77: 2016-08-01 | B77: Picnic Day | C77: Northern Territory | D77: =Query1[[#This Row],[Date]]&""&Query1[[#This Row],[Jurisdiction]] -> 42583Northern Territory
A78: 2016-09-26 | B78: Family & Community Day | C78: Australian Capital Territory | D78: =Query1[[#This Row],[Date]]&""&Query1[[#This Row],[Jurisdiction]] -> 42639Australian Capital Territory
A79: 2016-09-26 | B79: Queen's Birthday | C79: Western Australia | D79: =Query1[[#This Row],[Date]]&""&Query1[[#This Row],[Jurisdiction]] -> 42639Western Australia
A80: 2016-09-30 | B80: AFL Grand Final | C80: Victoria | D80: =Query1[[#This Row],[Date]]&""&Query1[[#This Row],[Jurisdiction]] -> 42643Victoria
A81: 2016-10-03 | B81: Queen's Birthday | C81: Queensland | D81: =Query1[[#This Row],[Date]]&""&Query1[[#This Row],[Jurisdiction]] -> 42646Queensland
A82: 2016-10-03 | B82: Labour Day | C82: Australian Capital Territory|New South Wales|South Australia | D82: =Query1[[#This Row],[Date]]&""&Query1[[#This Row],[Jurisdiction]] -> 42646Australian Capital Territory|New South Wales|South Australia
A83: 2016-11-01 | B83: Melbourne Cup Day | C83: Victoria | D83: =Query1[[#This Row],[Date]]&""&Query1[[#This Row],[Jurisdiction]] -> 42675Victoria
A84: 2016-12-24 | B84: Christmas Eve | C84: South Australia | D84: =Query1[[#This Row],[Date]]&""&Query1[[#This Row],[Jurisdiction]] -> 42728South Australia
A85: 2016-12-25 | B85: Christmas Day | C85: nat | D85: =Query1[[#This Row],[Date]]&""&Query1[[#This Row],[Jurisdiction]] -> 42729nat
A86: 2016-12-26 | B86: Christmas Day holiday | C86: South Australia | D86: =Query1[[#This Row],[Date]]&""&Query1[[#This Row],[Jurisdiction]] -> 42730South Australia
A87: 2016-12-26 | B87: Boxing Day | C87: Australian Capital Territory|New South Wales|Northern Territory|Queensland|Western Australia|Tasmania|Victoria | D87: =Query1[[#This Row],[Date]]&""&Query1[[#This Row],[Jurisdiction]] -> 42730Australian Capital Territory|New South Wales|Northern Territory|Queensland|Western Australia|Tasmania|Victoria
A88: 2016-12-27 | B88: Christmas Day holiday | C88: Australian Capital Territory|New South Wales|Northern Territory|Queensland|Western Australia|Tasmania|Victoria | D88: =Query1[[#This Row],[Date]]&""&Query1[[#This Row],[Jurisdiction]] -> 42731Australian Capital Territory|New South Wales|Northern Territory|Queensland|Western Australia|Tasmania|Victoria
A89: 2016-12-27 | B89: Boxing Day holiday | C89: Western Australia | D89: =Query1[[#This Row],[Date]]&""&Query1[[#This Row],[Jurisdiction]] -> 42731Western Australia
A90: 2016-12-27 | B90: Proclamation Day | C90: South Australia | D90: =Query1[[#This Row],[Date]]&""&Query1[[#This Row],[Jurisdiction]] -> 42731South Australia
A91: 2016-12-31 | B91: New Year's Eve | C91: South Australia | D91: =Query1[[#This Row],[Date]]&""&Query1[[#This Row],[Jurisdiction]] -> 42735South Australia
A92: 2017-01-01 | B92: New Year's Day | C92: nat | D92: =Query1[[#This Row],[Date]]&""&Query1[[#This Row],[Jurisdiction]] -> 42736nat
A93: 2017-01-02 | B93: Additional day | C93: nat | D93: =Query1[[#This Row],[Date]]&""&Query1[[#This Row],[Jurisdiction]] -> 42737nat
A94: 2017-01-26 | B94: Australia Day | C94: nat | D94: =Query1[[#This Row],[Date]]&""&Query1[[#This Row],[Jurisdiction]] -> 42761nat
A95: 2017-02-12 | B95: Royal Hobart Regatta | C95: Tasmania | D95: =Query1[[#This Row],[Date]]&""&Query1[[#This Row],[Jurisdiction]] -> 42778Tasmania
A96: 2017-03-06 | B96: Labour Day | C96: Western Australia | D96: =Query1[[#This Row],[Date]]&""&Query1[[#This Row],[Jurisdiction]] -> 42800Western Australia
A97: 2017-03-13 | B97: Eight Hours Day | C97: Tasmania | D97: =Query1[[#This Row],[Date]]&""&Query1[[#This Row],[Jurisdiction]] -> 42807Tasmania
A98: 2017-03-13 | B98: Canberra Day | C98: Australian Capital Territory | D98: =Query1[[#This Row],[Date]]&""&Query1[[#This Row],[Jurisdiction]] -> 42807Australian Capital Territory
A99: 2017-03-13 | B99: March public holiday | C99: South Australia | D99: =Query1[[#This Row],[Date]]&""&Query1[[#This Row],[Jurisdiction]] -> 42807South Australia
A100: 2017-03-13 | B100: Labour Day | C100: Victoria | D100: =Query1[[#This Row],[Date]]&""&Query1[[#This Row],[Jurisdiction]] -> 42807Victoria
A101: 2017-04-14 | B101: Good Friday | C101: nat | D101: =Query1[[#This Row],[Date]]&""&Query1[[#This Row],[Jurisdiction]] -> 42839nat
A102: 2017-04-15 | B102: Easter Saturday | C102: Australian Capital Territory|New South Wales|South Australia|Queensland|Northern Territory|Victoria | D102: =Query1[[#This Row],[Date]]&""&Query1[[#This Row],[Jurisdiction]] -> 42840Australian Capital Territory|New South Wales|South Australia|Queensland|Northern Territory|Victoria
A103: 2017-04-15 | B103: Easter Saturday | C103: Australian Capital Territory|New South Wales|Northern Territory|Queensland|South Australia|Victoria | D103: =Query1[[#This Row],[Date]]&""&Query1[[#This Row],[Jurisdiction]] -> 42840Australian Capital Territory|New South Wales|Northern Territory|Queensland|South Australia|Victoria
A104: 2017-04-16 | B104: Easter Sunday | C104: Australian Capital Territory|New South Wales|Victoria | D104: =Query1[[#This Row],[Date]]&""&Query1[[#This Row],[Jurisdiction]] -> 42841Australian Capital Territory|New South Wales|Victoria
A105: 2017-04-16 | B105: Easter Sunday | C105: Australian Capital Territory|New South Wales|Queensland|Victoria | D105: =Query1[[#This Row],[Date]]&""&Query1[[#This Row],[Jurisdiction]] -> 42841Australian Capital Territory|New South Wales|Queensland|Victoria
A106: 2017-04-17 | B106: Easter Monday | C106: nat | D106: =Query1[[#This Row],[Date]]&""&Query1[[#This Row],[Jurisdiction]] -> 42842nat
A107: 2017-04-18 | B107: Easter Tuesday | C107: Tasmania | D107: =Query1[[#This Row],[Date]]&""&Query1[[#This Row],[Jurisdiction]] -> 42843Tasmania
A108: 2017-04-25 | B108: ANZAC Day | C108: nat | D108: =Query1[[#This Row],[Date]]&""&Query1[[#This Row],[Jurisdiction]] -> 42850nat
A109: 2017-05-01 | B109: May Day | C109: Northern Territory | D109: =Query1[[#This Row],[Date]]&""&Query1[[#This Row],[Jurisdiction]] -> 42856Northern Territory
A110: 2017-05-01 | B110: Labour Day | C110: Queensland | D110: =Query1[[#This Row],[Date]]&""&Query1[[#This Row],[Jurisdiction]] -> 42856Queensland
A111: 2017-06-05 | B111: Western Australia Day | C111: Western Australia | D111: =Query1[[#This Row],[Date]]&""&Query1[[#This Row],[Jurisdiction]] -> 42891Western Australia
A112: 2017-06-12 | B112: Queen's Birthday | C112: Australian Capital Territory|New South Wales|Northern Territory|South Australia|Tasmania|Victoria | D112: =Query1[[#This Row],[Date]]&""&Query1[[#This Row],[Jurisdiction]] -> 42898Australian Capital Territory|New South Wales|Northern Territory|South Australia|Tasmania|Victoria
A113: 2017-08-07 | B113: Picnic Day | C113: Northern Territory | D113: =Query1[[#This Row],[Date]]&""&Query1[[#This Row],[Jurisdiction]] -> 42954Northern Territory
A114: 2017-08-07 | B114: Bank Holiday | C114: New South Wales | D114: =Query1[[#This Row],[Date]]&""&Query1[[#This Row],[Jurisdiction]] -> 42954New South Wales
A115: 2017-09-25 | B115: Family and Community Day | C115: Australian Capital Territory | D115: =Query1[[#This Row],[Date]]&""&Query1[[#This Row],[Jurisdiction]] -> 43003Australian Capital Territory
A116: 2017-09-25 | B116: Queen's Birthday | C116: Western Australia | D116: =Query1[[#This Row],[Date]]&""&Query1[[#This Row],[Jurisdiction]] -> 43003Western Australia
A117: 2017-09-29 | B117: AFL Grand Final | C117: Victoria | D117: =Query1[[#This Row],[Date]]&""&Query1[[#This Row],[Jurisdiction]] -> 43007Victoria
A118: 2017-10-02 | B118: Queen's Birthday | C118: Queensland | D118: =Query1[[#This Row],[Date]]&""&Query1[[#This Row],[Jurisdiction]] -> 43010Queensland
A119: 2017-10-02 | B119: Labour Day | C119: Australian Capital Territory|New South Wales|South Australia | D119: =Query1[[#This Row],[Date]]&""&Query1[[#This Row],[Jurisdiction]] -> 43010Australian Capital Territory|New South Wales|South Australia
A120: 2017-11-06 | B120: Recreation Day | C120: Tasmania | D120: =Query1[[#This Row],[Date]]&""&Query1[[#This Row],[Jurisdiction]] -> 43045Tasmania
A121: 2017-11-07 | B121: Melbourne Cup | C121: Victoria | D121: =Query1[[#This Row],[Date]]&""&Query1[[#This Row],[Jurisdiction]] -> 43046Victoria
A122: 2017-12-24 | B122: Christmas Eve | C122: South Australia | D122: =Query1[[#This Row],[Date]]&""&Query1[[#This Row],[Jurisdiction]] -> 43093South Australia
A123: 2017-12-24 | B123: Christmas Eve | C123: Northern Territory|South Australia | D123: =Query1[[#This Row],[Date]]&""&Query1[[#This Row],[Jurisdiction]] -> 43093Northern Territory|South Australia
A124: 2017-12-25 | B124: Christmas Day | C124: nat | D124: =Query1[[#This Row],[Date]]&""&Query1[[#This Row],[Jurisdiction]] -> 43094nat
A125: 2017-12-26 | B125: Proclamation Day | C125: South Australia | D125: =Query1[[#This Row],[Date]]&""&Query1[[#This Row],[Jurisdiction]] -> 43095South Australia
A126: 2017-12-26 | B126: Boxing Day | C126: Australian Capital Territory|New South Wales|Northern Territory|Queensland|Tasmania|Victoria|Western Australia | D126: =Query1[[#This Row],[Date]]&""&Query1[[#This Row],[Jurisdiction]] -> 43095Australian Capital Territory|New South Wales|Northern Territory|Queensland|Tasmania|Victoria|Western Australia
A127: 2017-12-26 | B127: Boxing Day | C127: Australian Capital Territory|Tasmania|Victoria|New South Wales|Queensland|Northern Territory|Western Australia | D127: =Query1[[#This Row],[Date]]&""&Query1[[#This Row],[Jurisdiction]] -> 43095Australian Capital Territory|Tasmania|Victoria|New South Wales|Queensland|Northern Territory|Western Australia
A128: 2017-12-31 | B128: New Year's Eve | C128: South Australia | D128: =Query1[[#This Row],[Date]]&""&Query1[[#This Row],[Jurisdiction]] -> 43100South Australia
A129: 2017-12-31 | B129: New Year's Eve | C129: Northern Territory|South Australia | D129: =Query1[[#This Row],[Date]]&""&Query1[[#This Row],[Jurisdiction]] -> 43100Northern Territory|South Australia
A130: 2018-01-01 | B130: New Year's Day | C130: nat | D130: =Query1[[#This Row],[Date]]&""&Query1[[#This Row],[Jurisdiction]] -> 43101nat
A131: 2018-01-26 | B131: Australia Day | C131: nat | D131: =Query1[[#This Row],[Date]]&""&Query1[[#This Row],[Jurisdiction]] -> 43126nat
A132: 2018-02-12 | B132: Royal Hobart Regatta | C132: Tasmania | D132: =Query1[[#This Row],[Date]]&""&Query1[[#This Row],[Jurisdiction]] -> 43143Tasmania
A133: 2018-03-05 | B133: Labour Day | C133: Western Australia | D133: =Query1[[#This Row],[Date]]&""&Query1[[#This Row],[Jurisdiction]] -> 43164Western Australia
A134: 2018-03-12 | B134: Labour Day | C134: Victoria | D134: =Query1[[#This Row],[Date]]&""&Query1[[#This Row],[Jurisdiction]] -> 43171Victoria
A135: 2018-03-12 | B135: March public holiday | C135: South Australia | D135: =Query1[[#This Row],[Date]]&""&Query1[[#This Row],[Jurisdiction]] -> 43171South Australia
A136: 2018-03-12 | B136: Eight Hours Day | C136: Tasmania | D136: =Query1[[#This Row],[Date]]&""&Query1[[#This Row],[Jurisdiction]] -> 43171Tasmania
A137: 2018-03-12 | B137: Canberra Day | C137: Australian Capital Territory | D137: =Query1[[#This Row],[Date]]&""&Query1[[#This Row],[Jurisdiction]] -> 43171Australian Capital Territory
A138: 2018-03-30 | B138: Good Friday | C138: nat | D138: =Query1[[#This Row],[Date]]&""&Query1[[#This Row],[Jurisdiction]] -> 43189nat
A139: 2018-03-31 | B139: Easter Saturday | C139: Australian Capital Territory|New South Wales|Northern Territory|Queensland|South Australia|Victoria | D139: =Query1[[#This Row],[Date]]&""&Query1[[#This Row],[Jurisdiction]] -> 43190Australian Capital Territory|New South Wales|Northern Territory|Queensland|South Australia|Victoria
A140: 2018-04-01 | B140: Easter Sunday | C140: Australian Capital Territory|New South Wales|Queensland|Victoria | D140: =Query1[[#This Row],[Date]]&""&Query1[[#This Row],[Jurisdiction]] -> 43191Australian Capital Territory|New South Wales|Queensland|Victoria
A141: 2018-04-02 | B141: Easter Monday | C141: nat | D141: =Query1[[#This Row],[Date]]&""&Query1[[#This Row],[Jurisdiction]] -> 43192nat
A142: 2018-04-25 | B142: ANZAC Day | C142: nat | D142: =Query1[[#This Row],[Date]]&""&Query1[[#This Row],[Jurisdiction]] -> 43215nat
A143: 2018-05-07 | B143: May Day | C143: Northern Territory | D143: =Query1[[#This Row],[Date]]&""&Query1[[#This Row],[Jurisdiction]] -> 43227Northern Territory
A144: 2018-05-07 | B144: Labour Day | C144: Queensland | D144: =Query1[[#This Row],[Date]]&""&Query1[[#This Row],[Jurisdiction]] -> 43227Queensland
A145: 2018-05-28 | B145: Reconciliation Day | C145: Australian Capital Territory | D145: =Query1[[#This Row],[Date]]&""&Query1[[#This Row],[Jurisdiction]] -> 43248Australian Capital Territory
A146: 2018-06-04 | B146: Western Australia Day | C146: Western Australia | D146: =Query1[[#This Row],[Date]]&""&Query1[[#This Row],[Jurisdiction]] -> 43255Western Australia
A147: 2018-06-11 | B147: Queen's Birthday | C147: Australian Capital Territory|New South Wales|Northern Territory|South Australia|Tasmania|Victoria | D147: =Query1[[#This Row],[Date]]&""&Query1[[#This Row],[Jurisdiction]] -> 43262Australian Capital Territory|New South Wales|Northern Territory|South Australia|Tasmania|Victoria
A148: 2018-08-06 | B148: Picnic Day | C148: Northern Territory | D148: =Query1[[#This Row],[Date]]&""&Query1[[#This Row],[Jurisdiction]] -> 43318Northern Territory
A149: 2018-08-06 | B149: Bank Holiday | C149: New South Wales | D149: =Query1[[#This Row],[Date]]&""&Query1[[#This Row],[Jurisdiction]] -> 43318New South Wales
A150: 2018-09-24 | B150: Queen's Birthday | C150: Western Australia | D150: =Query1[[#This Row],[Date]]&""&Query1[[#This Row],[Jurisdiction]] -> 43367Western Australia
A151: 2018-09-28 | B151: Friday before the AFL Grand Final | C151: Victoria | D151: =Query1[[#This Row],[Date]]&""&Query1[[#This Row],[Jurisdiction]] -> 43371Victoria
A152: 2018-10-01 | B152: Labour Day | C152: Australian Capital Territory|New South Wales|South Australia | D152: =Query1[[#This Row],[Date]]&""&Query1[[#This Row],[Jurisdiction]] -> 43374Australian Capital Territory|New South Wales|South Australia
A153: 2018-10-01 | B153: Queen's Birthday | C153: Queensland | D153: =Query1[[#This Row],[Date]]&""&Query1[[#This Row],[Jurisdiction]] -> 43374Queensland
A154: 2018-11-05 | B154: Recreation Day | C154: Tasmania | D154: =Query1[[#This Row],[Date]]&""&Query1[[#This Row],[Jurisdiction]] -> 43409Tasmania
A155: 2018-11-06 | B155: Melbourne Cup | C155: Victoria | D155: =Query1[[#This Row],[Date]]&""&Query1[[#This Row],[Jurisdiction]] -> 43410Victoria
A156: 2018-12-24 | B156: Christmas Eve | C156: Northern Territory|South Australia | D156: =Query1[[#This Row],[Date]]&""&Query1[[#This Row],[Jurisdiction]] -> 43458Northern Territory|South Australia
A157: 2018-12-25 | B157: Christmas Day | C157: nat | D157: =Query1[[#This Row],[Date]]&""&Query1[[#This Row],[Jurisdiction]] -> 43459nat
A158: 2018-12-26 | B158: Proclamation Day | C158: South Australia | D158: =Query1[[#This Row],[Date]]&""&Query1[[#This Row],[Jurisdiction]] -> 43460South Australia
A159: 2018-12-26 | B159: Boxing Day | C159: Australian Capital Territory|New South Wales|Northern Territory|Queensland|Tasmania|Victoria|Western Australia | D159: =Query1[[#This Row],[Date]]&""&Query1[[#This Row],[Jurisdiction]] -> 43460Australian Capital Territory|New South Wales|Northern Territory|Queensland|Tasmania|Victoria|Western Australia
A160: 2018-12-31 | B160: New Year's Eve | C160: Northern Territory|South Australia | D160: =Query1[[#This Row],[Date]]&""&Query1[[#This Row],[Jurisdiction]] -> 43465Northern Territory|South Australia
A161: 2019-01-01 | B161: New Year's Day | C161: South Australia | D161: =Query1[[#This Row],[Date]]&""&Query1[[#This Row],[Jurisdiction]] -> 43466South Australia
A162: 2019-01-01 | B162: New Year's Day | C162: Western Australia | D162: =Query1[[#This Row],[Date]]&""&Query1[[#This Row],[Jurisdiction]] -> 43466Western Australia
A163: 2019-01-01 | B163: New Year's Day | C163: New South Wales | D163: =Query1[[#This Row],[Date]]&""&Query1[[#This Row],[Jurisdiction]] -> 43466New South Wales
A164: 2019-01-01 | B164: New Year's Day | C164: Victoria | D164: =Query1[[#This Row],[Date]]&""&Query1[[#This Row],[Jurisdiction]] -> 43466Victoria
A165: 2019-01-01 | B165: New Year's Day | C165: Queensland | D165: =Query1[[#This Row],[Date]]&""&Query1[[#This Row],[Jurisdiction]] -> 43466Queensland
A166: 2019-01-01 | B166: New Year's Day | C166: Tasmania | D166: =Query1[[#This Row],[Date]]&""&Query1[[#This Row],[Jurisdiction]] -> 43466Tasmania
A167: 2019-01-01 | B167: New Year's Day | C167: Northern Territory | D167: =Query1[[#This Row],[Date]]&""&Query1[[#This Row],[Jurisdiction]] -> 43466Northern Territory
A168: 2019-01-01 | B168: New Year's Day | C168: Australian Capital Territory | D168: =Query1[[#This Row],[Date]]&""&Query1[[#This Row],[Jurisdiction]] -> 43466Australian Capital Territory
A169: 2019-01-28 | B169: Australia Day | C169: Australian Capital Territory | D169: =Query1[[#This Row],[Date]]&""&Query1[[#This Row],[Jurisdiction]] -> 43493Australian Capital Territory
A170: 2019-01-28 | B170: Australia Day | C170: Western Australia | D170: =Query1[[#This Row],[Date]]&""&Query1[[#This Row],[Jurisdiction]] -> 43493Western Australia
A171: 2019-01-28 | B171: Australia Day | C171: Queensland | D171: =Query1[[#This Row],[Date]]&""&Query1[[#This Row],[Jurisdiction]] -> 43493Queensland
A172: 2019-01-28 | B172: Australia Day | C172: Northern Territory | D172: =Query1[[#This Row],[Date]]&""&Query1[[#This Row],[Jurisdiction]] -> 43493Northern Territory
A173: 2019-01-28 | B173: Australia Day | C173: Victoria | D173: =Query1[[#This Row],[Date]]&""&Query1[[#This Row],[Jurisdiction]] -> 43493Victoria
A174: 2019-01-28 | B174: Australia Day | C174: Tasmania | D174: =Query1[[#This Row],[Date]]&""&Query1[[#This Row],[Jurisdiction]] -> 43493Tasmania
A175: 2019-01-28 | B175: Australia Day | C175: New South Wales | D175: =Query1[[#This Row],[Date]]&""&Query1[[#This Row],[Jurisdiction]] -> 43493New South Wales
A176: 2019-01-28 | B176: Australia Day | C176: South Australia | D176: =Query1[[#This Row],[Date]]&""&Query1[[#This Row],[Jurisdiction]] -> 43493South Australia
A177: 2019-02-11 | B177: Royal Hobart Regatta | C177: Tasmania | D177: =Query1[[#This Row],[Date]]&""&Query1[[#This Row],[Jurisdiction]] -> 43507Tasmania
A178: 2019-03-04 | B178: Labour Day | C178: Western Australia | D178: =Query1[[#This Row],[Date]]&""&Query1[[#This Row],[Jurisdiction]] -> 43528Western Australia
A179: 2019-03-11 | B179: Canberra Day | C179: Australian Capital Territory | D179: =Query1[[#This Row],[Date]]&""&Query1[[#This Row],[Jurisdiction]] -> 43535Australian Capital Territory
A180: 2019-03-11 | B180: Eight Hours Day | C180: Tasmania | D180: =Query1[[#This Row],[Date]]&""&Query1[[#This Row],[Jurisdiction]] -> 43535Tasmania
A181: 2019-03-11 | B181: Labour Day | C181: Victoria | D181: =Query1[[#This Row],[Date]]&""&Query1[[#This Row],[Jurisdiction]] -> 43535Victoria
A182: 2019-03-11 | B182: March public holiday | C182: South Australia | D182: =Query1[[#This Row],[Date]]&""&Query1[[#This Row],[Jurisdiction]] -> 43535South Australia
A183: 2019-04-19 | B183: Good Friday | C183: Queensland | D183: =Query1[[#This Row],[Date]]&""&Query1[[#This Row],[Jurisdiction]] -> 43574Queensland
A184: 2019-04-19 | B184: Good Friday | C184: South Australia | D184: =Query1[[#This Row],[Date]]&""&Query1[[#This Row],[Jurisdiction]] -> 43574South Australia
A185: 2019-04-19 | B185: Good Friday | C185: Tasmania | D185: =Query1[[#This Row],[Date]]&""&Query1[[#This Row],[Jurisdiction]] -> 43574Tasmania
A186: 2019-04-19 | B186: Good Friday | C186: Northern Territory | D186: =Query1[[#This Row],[Date]]&""&Query1[[#This Row],[Jurisdiction]] -> 43574Northern Territory
A187: 2019-04-19 | B187: Good Friday | C187: Victoria | D187: =Query1[[#This Row],[Date]]&""&Query1[[#This Row],[Jurisdiction]] -> 43574Victoria
A188: 2019-04-19 | B188: Good Friday | C188: Western Australia | D188: =Query1[[#This Row],[Date]]&""&Query1[[#This Row],[Jurisdiction]] -> 43574Western Australia
A189: 2019-04-19 | B189: Good Friday | C189: New South Wales | D189: =Query1[[#This Row],[Date]]&""&Query1[[#This Row],[Jurisdiction]] -> 43574New South Wales
A190: 2019-04-19 | B190: Good Friday | C190: Australian Capital Territory | D190: =Query1[[#This Row],[Date]]&""&Query1[[#This Row],[Jurisdiction]] -> 43574Australian Capital Territory
A191: 2019-04-20 | B191: Saturday before Easter Sunday | C191: New South Wales | D191: =Query1[[#This Row],[Date]]&""&Query1[[#This Row],[Jurisdiction]] -> 43575New South Wales
A192: 2019-04-20 | B192: Saturday before Easter Sunday | C192: Queensland | D192: =Query1[[#This Row],[Date]]&""&Query1[[#This Row],[Jurisdiction]] -> 43575Queensland
A193: 2019-04-20 | B193: Saturday before Easter Sunday | C193: South Australia | D193: =Query1[[#This Row],[Date]]&""&Query1[[#This Row],[Jurisdiction]] -> 43575South Australia
A194: 2019-04-20 | B194: Saturday before Easter Sunday | C194: Northern Territory | D194: =Query1[[#This Row],[Date]]&""&Query1[[#This Row],[Jurisdiction]] -> 43575Northern Territory
A195: 2019-04-20 | B195: Saturday before Easter Sunday | C195: Australian Capital Territory | D195: =Query1[[#This Row],[Date]]&""&Query1[[#This Row],[Jurisdiction]] -> 43575Australian Capital Territory
A196: 2019-04-20 | B196: Saturday before Easter Sunday | C196: Victoria | D196: =Query1[[#This Row],[Date]]&""&Query1[[#This Row],[Jurisdiction]] -> 43575Victoria
A197: 2019-04-21 | B197: Easter Sunday | C197: Australian Capital Territory | D197: =Query1[[#This Row],[Date]]&""&Query1[[#This Row],[Jurisdiction]] -> 43576Australian Capital Territory
A198: 2019-04-21 | B198: Easter Sunday | C198: New South Wales | D198: =Query1[[#This Row],[Date]]&""&Query1[[#This Row],[Jurisdiction]] -> 43576New South Wales
A199: 2019-04-21 | B199: Easter Sunday | C199: Queensland | D199: =Query1[[#This Row],[Date]]&""&Query1[[#This Row],[Jurisdiction]] -> 43576Queensland
A200: 2019-04-21 | B200: Easter Sunday | C200: Victoria | D200: =Query1[[#This Row],[Date]]&""&Query1[[#This Row],[Jurisdiction]] -> 43576Victoria
... 666 more rows

Sheet Results for NABERS Rate
B2: Step 4: Transfer the highlighted values to NABERS Rate accordingly. | U2: Meet ASHRAE | V2: 100 % data provided
U3: 0.75 | V3: -1.562500014e-07
B4: Thermal Service Results | U4: 0.76 | V4: 0.0124095424
U5: 0.77 | V5: 0.02711841725
B6: Results from annual monitoring data collection spreadsheet(s) | U6: 0.78 | V6: 0.0441264704
U7: 0.79 | V7: 0.06343370395
C8: Total number of samples taken from all floors: | L8: =Run_Macro!C15 -> 20331 | U8: 0.8 | V8: 0.08504012
U9: 0.81 | V9: 0.1089457206
C10: Total number of samples for all sampled floors compliant with ASHRAE 55-2013: | L10: 19562 | U10: 0.82 | V10: 0.135150508
U11: 0.83 | V11: 0.1636544841
B12: Percentage of samples compliant with ASHRAE 55-2013: | L12: =L10/L8 -> 0.9621759874 | U12: 0.84 | V12: 0.1944576512
U13: 0.85 | V13: 0.2275600112
B14: Annual Monitoring Results: | L14: =IF(L12<0.75, 0, 0.00035*L12^3+11.495083*L12^2-16.117204*L12+5.621771) -> 0.7564442754 | U14: 0.86 | V14: 0.2629615664
U15: 0.87 | V15: 0.3006623187
B16: Note: The layout of this Results tab is designed identical to the Thermal Service page you see in NABERS Rate. Please copy and paste the two highlighted numbers to the blank cells | U16: 0.88 | V16: 0.3406622704
U17: 0.89 | V17: 0.3829614234
U18: 0.9 | V18: 0.42755978
U19: 0.91 | V19: 0.4744573421
U20: 0.92 | V20: 0.523654112
U21: 0.93 | V21: 0.5751500916
U22: 0.94 | V22: 0.6289452832
U23: 0.95 | V23: 0.6850396887
U24: 0.96 | V24: 0.7434333104 | W24: 0.7434333104
U25: 0.97 | V25: 0.8041261503
U26: 0.98 | V26: 0.8671182104
U27: 0.99 | V27: 0.9324094929
U28: 1 | V28: 1

Sheet Run_Macro
A2: NABERS IE Annual Monitoring Report | C2: Rating Number | E2: N12345
C3: Building Address | E3: 1 Test Rd, Sydney, NSW 2000
C4: Assessor | E4: Tester Smith
B5: Step 1: Please fill the white cells in this section.
B6: Building Information:
B7: Please choose this building's State from the drop-down menu: | C7: New South Wales | H7: =IF(C7="Tasmania","Note: This macro only removes State-wide Public Holidays in Tasmania. You will need to manually remove any public holiday days which apply to the specific city or town that the building resides in.",IF(C7="Queensland","Note: This macro only removes State-wide Public Holidays in Queensland. You will need to manually remove any public holidays which apply to the specific city or town that the building resides in.","")) -> 
B9: Number of Floors Required to be tested: | C9: 3 | F9: Floors
B10: Number of Required Samples per floor: | C10: 3 | F10: Locations | H10: =IF(OR(C7="Tasmania",C7="Queensland"),"Please refer to the tab 'QLD & TAS Local Public Holidays' for a detailed list of non-State-wide Public Holidays","") -> 
B12: Data Information:
B13: Rating period | C13: from: | D13: 2024-11-01 | E13: to | F13: =IF(D13="","",DATE(YEAR(D13)+1,MONTH(D13),DAY(D13)-1)) -> 2025-10-31 | G13: =NETWORKDAYS(D13,F13)-H13 -> 251 | H13: =COUNTIFS(Query1[Date],">"&D13, Query1[Date], "<"&F13,Query1[Jurisdiction], C7) -> 10
B14: Time Interval: | C14: 60 | F14: Minutes
B15: Maximum Available Samples | C15: =((60/C14)*8+1)*C9*C10*G13 -> 20331 | F15: Samples
B18: Step 2: Copy and paste your sensor temperature data into the Input Sheet named with "IE_Level_x".
B19: NOTE: a) The date and time columns in the Input Sheet are not populated automatically based on the information you selected in Step 1, please fill the columns with your BMS data. b) Please be cautious when pasting the temperature data: paste values only and restrict the cell formatting. c) You can make copies of the original Input Sheet if you have multiple sampling floors.
B23: Step 3: Click the button to run calculation.
B27: NOTE: Please be patient when the macro is running. It will take couple of minutes depends on the sample size. You will be brought to the results page automatically when the calculation is completed.

Sheet IE_Level_1
D2: # of Valid Samples | E2: Meets ASHRAE 55 | F2: Hot / Cold | G2: % Meets ASHRAE 55 | H2: Total # of Samples | I2: # of Valid Samples | J2: # Invalid Samples | K2: % Invalid Samples
D3: =H3-J3 -> 6631 | E3: =D3-F3 -> 6411 | F3: 220 | G3: =E3/D3 -> 0.9668225004 | H3: 6777 | I3: =H3-J3 -> 6631 | J3: 146 | K3: =J3/H3 -> 0.02154345581
B5: Step2: Enter Temperature Data
B7: Date | C7: Time | D7: Location 1 | E7: Location 2 | F7: Location 3 | I7: Location 6 | J7: Location 7 | K7: Location 8
B8: 2024-11-01 | C8: 09:00:00 | D8: 21.10499954 | E8: 22.02000046 | F8: 22
B9: 2024-11-01 | C9: 10:00:00 | D9: 21.36999893 | E9: 21.94499969 | F9: 22
B10: 2024-11-01 | C10: 11:00:00 | D10: 21.17500019 | E10: 21.98999977 | F10: 22
B11: 2024-11-01 | C11: 12:00:00 | D11: 21.21999931 | E11: 21.9649992 | F11: 22
B12: 2024-11-01 | C12: 13:00:00 | D12: 21.26499939 | E12: 21.82999992 | F12: 22
B13: 2024-11-01 | C13: 14:00:00 | D13: 21.42000008 | E13: 21.95499992 | F13: 22
B14: 2024-11-01 | C14: 15:00:00 | D14: 21.21000004 | E14: 21.82999992 | F14: 22
B15: 2024-11-01 | C15: 16:00:00 | D15: 21.07999992 | E15: 21.99999905 | F15: 22
B16: 2024-11-01 | C16: 17:00:00 | D16: 21.46999931 | E16: 21.97999954 | F16: 22
B17: 2024-11-04 | C17: 09:00:00 | D17: 22.49499893 | E17: 22.06999969 | F17: 22
B18: 2024-11-04 | C18: 10:00:00 | D18: 22.52999878 | E18: 22.27499962 | F18: 22
B19: 2024-11-04 | C19: 11:00:00 | D19: 22.48499966 | E19: 22.21999931 | F19: 22
B20: 2024-11-04 | C20: 12:00:00 | D20: 22.37999916 | E20: 22.26499939 | F20: 22
B21: 2024-11-04 | C21: 13:00:00 | D21: 22.27499962 | E21: 22.25 | F21: 22
B22: 2024-11-04 | C22: 14:00:00 | D22: 22.27999878 | E22: 22.15499878 | F22: 22
B23: 2024-11-04 | C23: 15:00:00 | D23: 22.07999992 | E23: 22.18999863 | F23: 22
B24: 2024-11-04 | C24: 16:00:00 | D24: 22.10000038 | E24: 22.24999905 | F24: 22
B25: 2024-11-04 | C25: 17:00:00 | D25: 22.15499878 | E25: 22.13999939 | F25: 22
B26: 2024-11-05 | C26: 09:00:00 | D26: 22.06999969 | E26: 22.19499874 | F26: 22
B27: 2024-11-05 | C27: 10:00:00 | D27: 21.88999939 | E27: 22.18999863 | F27: 22
B28: 2024-11-05 | C28: 11:00:00 | D28: 21.85000038 | E28: 22.27499962 | F28: 22
B29: 2024-11-05 | C29: 12:00:00 | D29: 21.93999958 | E29: 22.30999947 | F29: 22
B30: 2024-11-05 | C30: 13:00:00 | D30: 22.13999939 | E30: 22.34499931 | F30: 22
B31: 2024-11-05 | C31: 14:00:00 | D31: 22.11499882 | E31: 22.30999947 | F31: 22
B32: 2024-11-05 | C32: 15:00:00 | D32: 22.18000031 | E32: 22.38499928 | F32: 22
B33: 2024-11-05 | C33: 16:00:00 | D33: 22.13999939 | E33: 22.18000031 | F33: 22
B34: 2024-11-05 | C34: 17:00:00 | D34: 22.04999924 | E34: 22.32999992 | F34: 22
B35: 2024-11-06 | C35: 09:00:00 | D35: 22.14999962 | E35: 22.34000015 | F35: 22
B36: 2024-11-06 | C36: 10:00:00 | D36: 22.11999893 | E36: 22.28999996 | F36: 22
B37: 2024-11-06 | C37: 11:00:00 | D37: 22.05999947 | E37: 22.27999878 | F37: 22
B38: 2024-11-06 | C38: 12:00:00 | D38: 22.20999908 | E38: 22.30999947 | F38: 22
B39: 2024-11-06 | C39: 13:00:00 | D39: 22.05999947 | E39: 22.46999931 | F39: 22
B40: 2024-11-06 | C40: 14:00:00 | D40: 21.93000031 | E40: 22.29499912 | F40: 22
B41: 2024-11-06 | C41: 15:00:00 | D41: 22.06499958 | E41: 22.27999878 | F41: 22
B42: 2024-11-06 | C42: 16:00:00 | D42: 21.96999931 | E42: 22.5199995 | F42: 22
B43: 2024-11-06 | C43: 17:00:00 | D43: 22.00499916 | E43: 22.27999878 | F43: 22
B44: 2024-11-07 | C44: 09:00:00 | D44: 22.10999966 | E44: 21.35000038 | F44: 22
B45: 2024-11-07 | C45: 10:00:00 | D45: 22.10000038 | E45: 21.29999924 | F45: 22
B46: 2024-11-07 | C46: 11:00:00 | D46: 21.92999935 | E46: 21.30999947 | F46: 22
B47: 2024-11-07 | C47: 12:00:00 | D47: 21.92000008 | E47: 21.18499947 | F47: 22
B48: 2024-11-07 | C48: 13:00:00 | D48: 21.94999981 | E48: 21.27000046 | F48: 22
B49: 2024-11-07 | C49: 14:00:00 | D49: 22.06999969 | E49: 21.39000034 | F49: 22
B50: 2024-11-07 | C50: 15:00:00 | D50: 21.90499973 | E50: 21.43000031 | F50: 22
B51: 2024-11-07 | C51: 16:00:00 | D51: 22.01000023 | E51: 21.37499905 | F51: 22
B52: 2024-11-07 | C52: 17:00:00 | D52: 22.03499985 | E52: 21.56999969 | F52: 22
B53: 2024-11-08 | C53: 09:00:00 | D53: 22.14999962 | E53: 22.05500031 | F53: 22
B54: 2024-11-08 | C54: 10:00:00 | D54: 22.26499939 | E54: 22.21999931 | F54: 22
B55: 2024-11-08 | C55: 11:00:00 | D55: 22.15999985 | E55: 22.11999893 | F55: 22
B56: 2024-11-08 | C56: 12:00:00 | D56: 22.03499985 | E56: 22.21999931 | F56: 22
B57: 2024-11-08 | C57: 13:00:00 | D57: 22.21999931 | E57: 22.11999893 | F57: 22
B58: 2024-11-08 | C58: 14:00:00 | D58: 22.11499977 | E58: 21.93999863 | F58: 22
B59: 2024-11-08 | C59: 15:00:00 | D59: 22.09000015 | E59: 22.02999973 | F59: 22
B60: 2024-11-08 | C60: 16:00:00 | D60: 22.17500019 | E60: 21.98999977 | F60: 22
B61: 2024-11-08 | C61: 17:00:00 | D61: 22.06999969 | E61: 22.07499981 | F61: 22
B62: 2024-11-11 | C62: 09:00:00 | D62: 22.70999908 | E62: 22.8949995 | F62: 22
B63: 2024-11-11 | C63: 10:00:00 | D63: 22.7699995 | E63: 22.86999893 | F63: 22
B64: 2024-11-11 | C64: 11:00:00 | D64: 22.8599987 | E64: 22.98499966 | F64: 22
B65: 2024-11-11 | C65: 12:00:00 | D65: 22.73999977 | E65: 22.97999954 | F65: 22
B66: 2024-11-11 | C66: 13:00:00 | D66: 22.88999939 | E66: 23.04999924 | F66: 22
B67: 2024-11-11 | C67: 14:00:00 | D67: 22.75999928 | E67: 22.8599987 | F67: 22
B68: 2024-11-11 | C68: 15:00:00 | D68: 22.75 | E68: 23.04999924 | F68: 22
B69: 2024-11-11 | C69: 16:00:00 | D69: 22.81499958 | E69: 22.96999931 | F69: 22
B70: 2024-11-11 | C70: 17:00:00 | D70: 22.8599987 | E70: 23.10000038 | F70: 22
B71: 2024-11-12 | C71: 09:00:00 | D71: 22.73499966 | E71: 23.05999947 | F71: 22
B72: 2024-11-12 | C72: 10:00:00 | D72: 22.82999992 | E72: 23.08499908 | F72: 22
B73: 2024-11-12 | C73: 11:00:00 | D73: 22.67999935 | E73: 23.15999985 | F73: 22
B74: 2024-11-12 | C74: 12:00:00 | D74: 22.72999954 | E74: 23.12999916 | F74: 22
B75: 2024-11-12 | C75: 13:00:00 | D75: 22.70499992 | E75: 23.18999863 | F75: 22
B76: 2024-11-12 | C76: 14:00:00 | D76: 22.87999916 | E76: 23.25 | F76: 22
B77: 2024-11-12 | C77: 15:00:00 | D77: 22.69999981 | E77: 23.25 | F77: 22
B78: 2024-11-12 | C78: 16:00:00 | D78: 22.57999992 | E78: 23.19499969 | F78: 22
B79: 2024-11-12 | C79: 17:00:00 | D79: 22.55499935 | E79: 23.23999977 | F79: 22
B80: 2024-11-13 | C80: 09:00:00 | D80: 23.10999966 | E80: 0 | F80: 22
B81: 2024-11-13 | C81: 10:00:00 | D81: 22.94999886 | E81: 0 | F81: 22
B82: 2024-11-13 | C82: 11:00:00 | D82: 22.93999958 | E82: 0 | F82: 22
B83: 2024-11-13 | C83: 12:00:00 | D83: 23.13999939 | E83: 0 | F83: 22
B84: 2024-11-13 | C84: 13:00:00 | D84: 23.09999943 | E84: 0 | F84: 22
B85: 2024-11-13 | C85: 14:00:00 | D85: 23.04999924 | E85: 0 | F85: 22
B86: 2024-11-13 | C86: 15:00:00 | D86: 22.97999954 | E86: 0 | F86: 22
B87: 2024-11-13 | C87: 16:00:00 | D87: 22.96999931 | E87: 0 | F87: 22
B88: 2024-11-13 | C88: 17:00:00 | D88: 22.99999905 | E88: 0 | F88: 22
B89: 2024-11-14 | C89: 09:00:00 | D89: 23.18000031 | E89: 0 | F89: 22
B90: 2024-11-14 | C90: 10:00:00 | D90: 23.01500034 | E90: 0 | F90: 22
B91: 2024-11-14 | C91: 11:00:00 | D91: 22.90999985 | E91: 0 | F91: 22
B92: 2024-11-14 | C92: 12:00:00 | D92: 22.95999908 | E92: 0 | F92: 22
B93: 2024-11-14 | C93: 13:00:00 | D93: 23.09000015 | E93: 0 | F93: 22
B94: 2024-11-14 | C94: 14:00:00 | D94: 22.91499996 | E94: 0 | F94: 22
B95: 2024-11-14 | C95: 15:00:00 | D95: 22.93000031 | E95: 0 | F95: 22
B96: 2024-11-14 | C96: 16:00:00 | D96: 22.81999874 | E96: 0 | F96: 22
B97: 2024-11-14 | C97: 17:00:00 | D97: 22.96999931 | E97: 0 | F97: 22
B98: 2024-11-15 | C98: 09:00:00 | D98: 22.88500023 | E98: 0 | F98: 22
B99: 2024-11-15 | C99: 10:00:00 | D99: 22.86999893 | E99: 0 | F99: 22
B100: 2024-11-15 | C100: 11:00:00 | D100: 22.85499954 | E100: 0 | F100: 22
B101: 2024-11-15 | C101: 12:00:00 | D101: 22.88999939 | E101: 0 | F101: 22
B102: 2024-11-15 | C102: 13:00:00 | D102: 22.80999947 | E102: 0 | F102: 22
B103: 2024-11-15 | C103: 14:00:00 | D103: 22.80999947 | E103: 0 | F103: 22
B104: 2024-11-15 | C104: 15:00:00 | D104: 22.79499912 | E104: 0 | F104: 22
B105: 2024-11-15 | C105: 16:00:00 | D105: 22.87999916 | E105: 0 | F105: 22
B106: 2024-11-15 | C106: 17:00:00 | D106: 22.83499908 | E106: 0 | F106: 22
B107: 2024-11-18 | C107: 09:00:00 | D107: 22.91999912 | E107: 21.65999985 | F107: 22
B108: 2024-11-18 | C108: 10:00:00 | D108: 22.94999886 | E108: 21.74499989 | F108: 22
B109: 2024-11-18 | C109: 11:00:00 | D109: 22.82999992 | E109: 21.71999931 | F109: 22
B110: 2024-11-18 | C110: 12:00:00 | D110: 22.93999863 | E110: 21.80499935 | F110: 22
B111: 2024-11-18 | C111: 13:00:00 | D111: 22.83499908 | E111: 21.77999878 | F111: 22
B112: 2024-11-18 | C112: 14:00:00 | D112: 22.8599987 | E112: 21.75 | F112: 22
B113: 2024-11-18 | C113: 15:00:00 | D113: 22.71999931 | E113: 21.68999863 | F113: 22
B114: 2024-11-18 | C114: 16:00:00 | D114: 22.78999901 | E114: 21.62999916 | F114: 22
B115: 2024-11-18 | C115: 17:00:00 | D115: 22.77499962 | E115: 21.68000031 | F115: 22
B116: 2024-11-19 | C116: 09:00:00 | D116: 22.86999989 | E116: 21.44999886 | F116: 22
B117: 2024-11-19 | C117: 10:00:00 | D117: 22.69999886 | E117: 21.42000008 | F117: 22
B118: 2024-11-19 | C118: 11:00:00 | D118: 22.72499943 | E118: 21.51000023 | F118: 22
B119: 2024-11-19 | C119: 12:00:00 | D119: 22.69999886 | E119: 21.40999889 | F119: 22
B120: 2024-11-19 | C120: 13:00:00 | D120: 22.8399992 | E120: 21.40999985 | F120: 22
B121: 2024-11-19 | C121: 14:00:00 | D121: 22.75 | E121: 21.36999989 | F121: 22
B122: 2024-11-19 | C122: 15:00:00 | D122: 22.77499962 | E122: 21.35000038 | F122: 22
B123: 2024-11-19 | C123: 16:00:00 | D123: 22.93999863 | E123: 21.42500019 | F123: 22
B124: 2024-11-19 | C124: 17:00:00 | D124: 23.0899992 | E124: 21.48999977 | F124: 22
B125: 2024-11-20 | C125: 09:00:00 | D125: 23.13999939 | E125: 21.57999897 | F125: 22
B126: 2024-11-20 | C126: 10:00:00 | D126: 23.15499973 | E126: 21.53999901 | F126: 22
B127: 2024-11-20 | C127: 11:00:00 | D127: 23 | E127: 21.55999947 | F127: 22
B128: 2024-11-20 | C128: 12:00:00 | D128: 23.10999966 | E128: 21.69999886 | F128: 22
B129: 2024-11-20 | C129: 13:00:00 | D129: 23.09000015 | E129: 21.52999878 | F129: 22
B130: 2024-11-20 | C130: 14:00:00 | D130: 22.93999958 | E130: 21.5 | F130: 22
B131: 2024-11-20 | C131: 15:00:00 | D131: 23 | E131: 21.63999939 | F131: 22
B132: 2024-11-20 | C132: 16:00:00 | D132: 22.97999954 | E132: 21.65999985 | F132: 22
B133: 2024-11-20 | C133: 17:00:00 | D133: 23.1099987 | E133: 21.6449995 | F133: 22
B134: 2024-11-21 | C134: 09:00:00 | D134: 23.01499939 | E134: 22.05999947 | F134: 22
B135: 2024-11-21 | C135: 10:00:00 | D135: 23.04999924 | E135: 22.25999928 | F135: 22
B136: 2024-11-21 | C136: 11:00:00 | D136: 23.03999996 | E136: 22.17000008 | F136: 22
B137: 2024-11-21 | C137: 12:00:00 | D137: 23.12999916 | E137: 22.2149992 | F137: 22
B138: 2024-11-21 | C138: 13:00:00 | D138: 23.05999947 | E138: 22.3599987 | F138: 22
B139: 2024-11-21 | C139: 14:00:00 | D139: 23.01999855 | E139: 22.44499969 | F139: 22
B140: 2024-11-21 | C140: 15:00:00 | D140: 23.00499916 | E140: 22.59000015 | F140: 22
B141: 2024-11-21 | C141: 16:00:00 | D141: 23.18000031 | E141: 22.4649992 | F141: 22
B142: 2024-11-21 | C142: 17:00:00 | D142: 23.14999962 | E142: 22.30999947 | F142: 22
B143: 2024-11-22 | C143: 09:00:00 | D143: 22.95499992 | E143: 21.85000038 | F143: 22
B144: 2024-11-22 | C144: 10:00:00 | D144: 23 | E144: 21.80499935 | F144: 22
B145: 2024-11-22 | C145: 11:00:00 | D145: 22.88499928 | E145: 21.73999977 | F145: 22
B146: 2024-11-22 | C146: 12:00:00 | D146: 22.73999977 | E146: 21.91999912 | F146: 22
B147: 2024-11-22 | C147: 13:00:00 | D147: 22.81499958 | E147: 21.94999886 | F147: 22
B148: 2024-11-22 | C148: 14:00:00 | D148: 23.09000015 | E148: 22.11999989 | F148: 22
B149: 2024-11-22 | C149: 15:00:00 | D149: 22.86499882 | E149: 22.15999985 | F149: 22
B150: 2024-11-22 | C150: 16:00:00 | D150: 22.88999939 | E150: 22.21999931 | F150: 22
B151: 2024-11-22 | C151: 17:00:00 | D151: 23.0199995 | E151: 22.29999924 | F151: 22
B152: 2024-11-25 | C152: 09:00:00 | D152: 22.72499943 | E152: 21.70999908 | F152: 22
B153: 2024-11-25 | C153: 10:00:00 | D153: 22.65999985 | E153: 21.63999939 | F153: 22
B154: 2024-11-25 | C154: 11:00:00 | D154: 22.80000019 | E154: 21.53999901 | F154: 22
B155: 2024-11-25 | C155: 12:00:00 | D155: 22.81999969 | E155: 21.67999935 | F155: 22
B156: 2024-11-25 | C156: 13:00:00 | D156: 22.77999973 | E156: 21.51000023 | F156: 22
B157: 2024-11-25 | C157: 14:00:00 | D157: 22.73999977 | E157: 21.72499943 | F157: 22
B158: 2024-11-25 | C158: 15:00:00 | D158: 22.77999878 | E158: 21.77999878 | F158: 22
B159: 2024-11-25 | C159: 16:00:00 | D159: 22.70999908 | E159: 21.69499969 | F159: 22
B160: 2024-11-25 | C160: 17:00:00 | D160: 22.78499985 | E160: 21.76000023 | F160: 22
B161: 2024-11-26 | C161: 09:00:00 | D161: 22.71999931 | E161: 21.73999977 | F161: 22
B162: 2024-11-26 | C162: 10:00:00 | D162: 22.73999977 | E162: 21.67000008 | F162: 22
B163: 2024-11-26 | C163: 11:00:00 | D163: 22.68999863 | E163: 21.72499943 | F163: 22
B164: 2024-11-26 | C164: 12:00:00 | D164: 22.76499939 | E164: 21.88999939 | F164: 22
B165: 2024-11-26 | C165: 13:00:00 | D165: 22.78999901 | E165: 21.79499912 | F165: 22
B166: 2024-11-26 | C166: 14:00:00 | D166: 22.79999924 | E166: 21.76000023 | F166: 22
B167: 2024-11-26 | C167: 15:00:00 | D167: 22.87999916 | E167: 21.78999996 | F167: 22
B168: 2024-11-26 | C168: 16:00:00 | D168: 22.77999973 | E168: 21.69999886 | F168: 22
B169: 2024-11-26 | C169: 17:00:00 | D169: 22.80999947 | E169: 21.86499977 | F169: 22
B170: 2024-11-27 | C170: 09:00:00 | D170: 22.46999931 | E170: 21.84000015 | F170: 22
B171: 2024-11-27 | C171: 10:00:00 | D171: 22.40999985 | E171: 21.97999954 | F171: 22
B172: 2024-11-27 | C172: 11:00:00 | D172: 22.19999886 | E172: 21.84000015 | F172: 22
B173: 2024-11-27 | C173: 12:00:00 | D173: 22.26999855 | E173: 21.88000011 | F173: 22
B174: 2024-11-27 | C174: 13:00:00 | D174: 22.24499989 | E174: 21.89999962 | F174: 22
B175: 2024-11-27 | C175: 14:00:00 | D175: 22.14999962 | E175: 21.93999958 | F175: 22
B176: 2024-11-27 | C176: 15:00:00 | D176: 22.0899992 | E176: 22.05999947 | F176: 22
B177: 2024-11-27 | C177: 16:00:00 | D177: 22.02999878 | E177: 22.07999992 | F177: 22
B178: 2024-11-27 | C178: 17:00:00 | D178: 22.05499935 | E178: 22.05999947 | F178: 22
B179: 2024-11-28 | C179: 09:00:00 | D179: 21.9649992 | E179: 21.05999947 | F179: 22
B180: 2024-11-28 | C180: 10:00:00 | D180: 21.76000023 | E180: 21.11499977 | F180: 22
B181: 2024-11-28 | C181: 11:00:00 | D181: 22.05999947 | E181: 21.22999954 | F181: 22
B182: 2024-11-28 | C182: 12:00:00 | D182: 21.93000031 | E182: 21.10999966 | F182: 22
B183: 2024-11-28 | C183: 13:00:00 | D183: 21.91999912 | E183: 21.02000046 | F183: 22
B184: 2024-11-28 | C184: 14:00:00 | D184: 21.70999908 | E184: 21.27999973 | F184: 22
B185: 2024-11-28 | C185: 15:00:00 | D185: 21.85499954 | E185: 21.27999878 | F185: 22
B186: 2024-11-28 | C186: 16:00:00 | D186: 21.81999969 | E186: 21.49999905 | F186: 22
B187: 2024-11-28 | C187: 17:00:00 | D187: 21.8949995 | E187: 21.57999992 | F187: 22
B188: 2024-11-29 | C188: 09:00:00 | D188: 22.04999924 | E188: 21.59000015 | F188: 22
B189: 2024-11-29 | C189: 10:00:00 | D189: 21.82499981 | E189: 21.6099987 | F189: 22
B190: 2024-11-29 | C190: 11:00:00 | D190: 21.76000023 | E190: 21.63999939 | F190: 22
B191: 2024-11-29 | C191: 12:00:00 | D191: 21.67500019 | E191: 21.44999886 | F191: 22
B192: 2024-11-29 | C192: 13:00:00 | D192: 21.40999985 | E192: 21.54999924 | F192: 22
B193: 2024-11-29 | C193: 14:00:00 | D193: 21.28499985 | E193: 21.68999863 | F193: 22
B194: 2024-11-29 | C194: 15:00:00 | D194: 21.37999916 | E194: 21.5899992 | F194: 22
B195: 2024-11-29 | C195: 16:00:00 | D195: 21.46000004 | E195: 21.62999916 | F195: 22
B196: 2024-11-29 | C196: 17:00:00 | D196: 21.36999893 | E196: 21.68999863 | F196: 22
B197: 2024-12-02 | C197: 09:00:00 | D197: 21.44999886 | E197: 21.31999969 | F197: 22
B198: 2024-12-02 | C198: 10:00:00 | D198: 21.42499924 | E198: 21.44999886 | F198: 22
B199: 2024-12-02 | C199: 11:00:00 | D199: 21.38999939 | E199: 21.37999916 | F199: 22
B200: 2024-12-02 | C200: 12:00:00 | D200: 21.29500008 | E200: 21.40999985 | F200: 22
B201: 2024-12-02 | C201: 13:00:00 | D201: 21.34000015 | E201: 21.43499947 | F201: 22
B202: 2024-12-02 | C202: 14:00:00 | D202: 21.31000042 | E202: 21.47999954 | F202: 22
B203: 2024-12-02 | C203: 15:00:00 | D203: 21.09000015 | E203: 21.43999958 | F203: 22
... 2063 more rows

Sheet IE_Level_2
D2: # of Valid Samples | E2: Meets ASHRAE 55 | F2: Hot / Cold | G2: % Meets ASHRAE 55 | H2: Total # of Samples | I2: # of Valid Samples | J2: # Invalid Samples | K2: % Invalid Samples
D3: =H3-J3 -> 6550 | E3: =D3-F3 -> 6242 | F3: 308 | G3: =E3/D3 -> 0.9529770992 | H3: 6777 | I3: =H3-J3 -> 6550 | J3: 227 | K3: =J3/H3 -> 0.03349564704
B5: Step2: Enter Temperature Data
B7: Date | C7: Time | D7: Location 1 | E7: Location 2 | F7: Location 3 | I7: Location 6 | J7: Location 7 | K7: Location 8
B8: 2024-11-01 | C8: 09:00:00 | D8: 21.10499954 | E8: 22.02000046 | F8: 22
B9: 2024-11-01 | C9: 10:00:00 | D9: 21.36999893 | E9: 21.94499969 | F9: 22
B10: 2024-11-01 | C10: 11:00:00 | D10: 21.17500019 | E10: 21.98999977 | F10: 22
B11: 2024-11-01 | C11: 12:00:00 | D11: 21.21999931 | E11: 21.9649992 | F11: 22
B12: 2024-11-01 | C12: 13:00:00 | D12: 21.26499939 | E12: 21.82999992 | F12: 22
B13: 2024-11-01 | C13: 14:00:00 | D13: 21.42000008 | E13: 21.95499992 | F13: 22
B14: 2024-11-01 | C14: 15:00:00 | D14: 21.21000004 | E14: 21.82999992 | F14: 22
B15: 2024-11-01 | C15: 16:00:00 | D15: 21.07999992 | E15: 21.99999905 | F15: 22
B16: 2024-11-01 | C16: 17:00:00 | D16: 21.46999931 | E16: 21.97999954 | F16: 22
B17: 2024-11-04 | C17: 09:00:00 | D17: 22.49499893 | E17: 22.06999969 | F17: 22
B18: 2024-11-04 | C18: 10:00:00 | D18: 22.52999878 | E18: 22.27499962 | F18: 22
B19: 2024-11-04 | C19: 11:00:00 | D19: 22.48499966 | E19: 22.21999931 | F19: 22
B20: 2024-11-04 | C20: 12:00:00 | D20: 22.37999916 | E20: 22.26499939 | F20: 22
B21: 2024-11-04 | C21: 13:00:00 | D21: 22.27499962 | E21: 22.25 | F21: 22
B22: 2024-11-04 | C22: 14:00:00 | D22: 22.27999878 | E22: 22.15499878 | F22: 22
B23: 2024-11-04 | C23: 15:00:00 | D23: 22.07999992 | E23: 22.18999863 | F23: 22
B24: 2024-11-04 | C24: 16:00:00 | D24: 22.10000038 | E24: 22.24999905 | F24: 22
B25: 2024-11-04 | C25: 17:00:00 | D25: 22.15499878 | E25: 22.13999939 | F25: 22
B26: 2024-11-05 | C26: 09:00:00 | D26: 22.06999969 | E26: 22.19499874 | F26: 22
B27: 2024-11-05 | C27: 10:00:00 | D27: 21.88999939 | E27: 22.18999863 | F27: 22
B28: 2024-11-05 | C28: 11:00:00 | D28: 21.85000038 | E28: 22.27499962 | F28: 22
B29: 2024-11-05 | C29: 12:00:00 | D29: 21.93999958 | E29: 22.30999947 | F29: 22
B30: 2024-11-05 | C30: 13:00:00 | D30: 22.13999939 | E30: 22.34499931 | F30: 22
B31: 2024-11-05 | C31: 14:00:00 | D31: 22.11499882 | E31: 22.30999947 | F31: 22
B32: 2024-11-05 | C32: 15:00:00 | D32: 22.18000031 | E32: 22.38499928 | F32: 22
B33: 2024-11-05 | C33: 16:00:00 | D33: 22.13999939 | E33: 22.18000031 | F33: 22
B34: 2024-11-05 | C34: 17:00:00 | D34: 22.04999924 | E34: 22.32999992 | F34: 22
B35: 2024-11-06 | C35: 09:00:00 | D35: 22.14999962 | E35: 22.34000015 | F35: 22
B36: 2024-11-06 | C36: 10:00:00 | D36: 22.11999893 | E36: 22.28999996 | F36: 22
B37: 2024-11-06 | C37: 11:00:00 | D37: 22.05999947 | E37: 22.27999878 | F37: 22
B38: 2024-11-06 | C38: 12:00:00 | D38: 22.20999908 | E38: 22.30999947 | F38: 22
B39: 2024-11-06 | C39: 13:00:00 | D39: 22.05999947 | E39: 22.46999931 | F39: 22
B40: 2024-11-06 | C40: 14:00:00 | D40: 21.93000031 | E40: 22.29499912 | F40: 22
B41: 2024-11-06 | C41: 15:00:00 | D41: 22.06499958 | E41: 22.27999878 | F41: 22
B42: 2024-11-06 | C42: 16:00:00 | D42: 21.96999931 | E42: 22.5199995 | F42: 22
B43: 2024-11-06 | C43: 17:00:00 | D43: 22.00499916 | E43: 22.27999878 | F43: 22
B44: 2024-11-07 | C44: 09:00:00 | D44: 22.10999966 | E44: 21.35000038 | F44: 22
B45: 2024-11-07 | C45: 10:00:00 | D45: 22.10000038 | E45: 21.29999924 | F45: 22
B46: 2024-11-07 | C46: 11:00:00 | D46: 21.92999935 | E46: 21.30999947 | F46: 22
B47: 2024-11-07 | C47: 12:00:00 | D47: 21.92000008 | E47: 21.18499947 | F47: 22
B48: 2024-11-07 | C48: 13:00:00 | D48: 21.94999981 | E48: 21.27000046 | F48: 22
B49: 2024-11-07 | C49: 14:00:00 | D49: 22.06999969 | E49: 21.39000034 | F49: 22
B50: 2024-11-07 | C50: 15:00:00 | D50: 21.90499973 | E50: 21.43000031 | F50: 22
B51: 2024-11-07 | C51: 16:00:00 | D51: 22.01000023 | E51: 21.37499905 | F51: 22
B52: 2024-11-07 | C52: 17:00:00 | D52: 22.03499985 | E52: 21.56999969 | F52: 22
B53: 2024-11-08 | C53: 09:00:00 | D53: 22.14999962 | E53: 22.05500031 | F53: 22
B54: 2024-11-08 | C54: 10:00:00 | D54: 22.26499939 | E54: 22.21999931 | F54: 22
B55: 2024-11-08 | C55: 11:00:00 | D55: 22.15999985 | E55: 22.11999893 | F55: 22
B56: 2024-11-08 | C56: 12:00:00 | D56: 22.03499985 | E56: 22.21999931 | F56: 22
B57: 2024-11-08 | C57: 13:00:00 | D57: 22.21999931 | E57: 22.11999893 | F57: 22
B58: 2024-11-08 | C58: 14:00:00 | D58: 22.11499977 | E58: 21.93999863 | F58: 22
B59: 2024-11-08 | C59: 15:00:00 | D59: 22.09000015 | E59: 22.02999973 | F59: 22
B60: 2024-11-08 | C60: 16:00:00 | D60: 22.17500019 | E60: 21.98999977 | F60: 22
B61: 2024-11-08 | C61: 17:00:00 | D61: 22.06999969 | E61: 22.07499981 | F61: 22
B62: 2024-11-11 | C62: 09:00:00 | D62: 22.70999908 | E62: 22.8949995 | F62: 22
B63: 2024-11-11 | C63: 10:00:00 | D63: 22.7699995 | E63: 22.86999893 | F63: 22
B64: 2024-11-11 | C64: 11:00:00 | D64: 22.8599987 | E64: 22.98499966 | F64: 22
B65: 2024-11-11 | C65: 12:00:00 | D65: 22.73999977 | E65: 22.97999954 | F65: 22
B66: 2024-11-11 | C66: 13:00:00 | D66: 22.88999939 | E66: 23.04999924 | F66: 22
B67: 2024-11-11 | C67: 14:00:00 | D67: 22.75999928 | E67: 22.8599987 | F67: 22
B68: 2024-11-11 | C68: 15:00:00 | D68: 22.75 | E68: 23.04999924 | F68: 22
B69: 2024-11-11 | C69: 16:00:00 | D69: 22.81499958 | E69: 22.96999931 | F69: 22
B70: 2024-11-11 | C70: 17:00:00 | D70: 22.8599987 | E70: 23.10000038 | F70: 22
B71: 2024-11-12 | C71: 09:00:00 | D71: 22.73499966 | E71: 23.05999947 | F71: 22
B72: 2024-11-12 | C72: 10:00:00 | D72: 22.82999992 | E72: 23.08499908 | F72: 22
B73: 2024-11-12 | C73: 11:00:00 | D73: 22.67999935 | E73: 23.15999985 | F73: 22
B74: 2024-11-12 | C74: 12:00:00 | D74: 22.72999954 | E74: 23.12999916 | F74: 22
B75: 2024-11-12 | C75: 13:00:00 | D75: 22.70499992 | E75: 23.18999863 | F75: 22
B76: 2024-11-12 | C76: 14:00:00 | D76: 22.87999916 | E76: 23.25 | F76: 22
B77: 2024-11-12 | C77: 15:00:00 | D77: 22.69999981 | E77: 23.25 | F77: 22
B78: 2024-11-12 | C78: 16:00:00 | D78: 22.57999992 | E78: 23.19499969 | F78: 22
B79: 2024-11-12 | C79: 17:00:00 | D79: 22.55499935 | E79: 23.23999977 | F79: 22
B80: 2024-11-13 | C80: 09:00:00 | D80: 23.10999966 | E80: 0 | F80: 22
B81: 2024-11-13 | C81: 10:00:00 | D81: 22.94999886 | E81: 0 | F81: 22
B82: 2024-11-13 | C82: 11:00:00 | D82: 22.93999958 | E82: 0 | F82: 22
B83: 2024-11-13 | C83: 12:00:00 | D83: 23.13999939 | E83: 0 | F83: 22
B84: 2024-11-13 | C84: 13:00:00 | D84: 23.09999943 | E84: 0 | F84: 22
B85: 2024-11-13 | C85: 14:00:00 | D85: 23.04999924 | E85: 0 | F85: 22
B86: 2024-11-13 | C86: 15:00:00 | D86: 22.97999954 | E86: 0 | F86: 22
B87: 2024-11-13 | C87: 16:00:00 | D87: 22.96999931 | E87: 0 | F87: 22
B88: 2024-11-13 | C88: 17:00:00 | D88: 22.99999905 | E88: 0 | F88: 22
B89: 2024-11-14 | C89: 09:00:00 | D89: 23.18000031 | E89: 0 | F89: 22
B90: 2024-11-14 | C90: 10:00:00 | D90: 23.01500034 | E90: 0 | F90: 22
B91: 2024-11-14 | C91: 11:00:00 | D91: 22.90999985 | E91: 0 | F91: 22
B92: 2024-11-14 | C92: 12:00:00 | D92: 22.95999908 | E92: 0 | F92: 22
B93: 2024-11-14 | C93: 13:00:00 | D93: 23.09000015 | E93: 0 | F93: 22
B94: 2024-11-14 | C94: 14:00:00 | D94: 22.91499996 | E94: 0 | F94: 22
B95: 2024-11-14 | C95: 15:00:00 | D95: 22.93000031 | E95: 0 | F95: 22
B96: 2024-11-14 | C96: 16:00:00 | D96: 22.81999874 | E96: 0 | F96: 22
B97: 2024-11-14 | C97: 17:00:00 | D97: 22.96999931 | E97: 0 | F97: 22
B98: 2024-11-15 | C98: 09:00:00 | D98: 22.88500023 | E98: 0 | F98: 22
B99: 2024-11-15 | C99: 10:00:00 | D99: 22.86999893 | E99: 0 | F99: 22
B100: 2024-11-15 | C100: 11:00:00 | D100: 22.85499954 | E100: 0 | F100: 22
B101: 2024-11-15 | C101: 12:00:00 | D101: 22.88999939 | E101: 0 | F101: 22
B102: 2024-11-15 | C102: 13:00:00 | D102: 22.80999947 | E102: 0 | F102: 22
B103: 2024-11-15 | C103: 14:00:00 | D103: 22.80999947 | E103: 0 | F103: 22
B104: 2024-11-15 | C104: 15:00:00 | D104: 22.79499912 | E104: 0 | F104: 22
B105: 2024-11-15 | C105: 16:00:00 | D105: 22.87999916 | E105: 0 | F105: 22
B106: 2024-11-15 | C106: 17:00:00 | D106: 22.83499908 | E106: 0 | F106: 22
B107: 2024-11-18 | C107: 09:00:00 | D107: 22.91999912 | E107: 21.65999985 | F107: 22
B108: 2024-11-18 | C108: 10:00:00 | D108: 22.94999886 | E108: 21.74499989 | F108: 22
B109: 2024-11-18 | C109: 11:00:00 | D109: 22.82999992 | E109: 21.71999931 | F109: 22
B110: 2024-11-18 | C110: 12:00:00 | D110: 22.93999863 | E110: 21.80499935 | F110: 22
B111: 2024-11-18 | C111: 13:00:00 | D111: 22.83499908 | E111: 21.77999878 | F111: 22
B112: 2024-11-18 | C112: 14:00:00 | D112: 22.8599987 | E112: 21.75 | F112: 22
B113: 2024-11-18 | C113: 15:00:00 | D113: 22.71999931 | E113: 21.68999863 | F113: 22
B114: 2024-11-18 | C114: 16:00:00 | D114: 22.78999901 | E114: 21.62999916 | F114: 22
B115: 2024-11-18 | C115: 17:00:00 | D115: 22.77499962 | E115: 21.68000031 | F115: 22
B116: 2024-11-19 | C116: 09:00:00 | D116: 22.86999989 | E116: 21.44999886 | F116: 22
B117: 2024-11-19 | C117: 10:00:00 | D117: 22.69999886 | E117: 21.42000008 | F117: 22
B118: 2024-11-19 | C118: 11:00:00 | D118: 22.72499943 | E118: 21.51000023 | F118: 22
B119: 2024-11-19 | C119: 12:00:00 | D119: 22.69999886 | E119: 21.40999889 | F119: 22
B120: 2024-11-19 | C120: 13:00:00 | D120: 22.8399992 | E120: 21.40999985 | F120: 22
B121: 2024-11-19 | C121: 14:00:00 | D121: 22.75 | E121: 21.36999989 | F121: 22
B122: 2024-11-19 | C122: 15:00:00 | D122: 22.77499962 | E122: 21.35000038 | F122: 22
B123: 2024-11-19 | C123: 16:00:00 | D123: 22.93999863 | E123: 21.42500019 | F123: 22
B124: 2024-11-19 | C124: 17:00:00 | D124: 23.0899992 | E124: 21.48999977 | F124: 22
B125: 2024-11-20 | C125: 09:00:00 | D125: 23.13999939 | E125: 21.57999897 | F125: 22
B126: 2024-11-20 | C126: 10:00:00 | D126: 23.15499973 | E126: 21.53999901 | F126: 22
B127: 2024-11-20 | C127: 11:00:00 | D127: 23 | E127: 21.55999947 | F127: 22
B128: 2024-11-20 | C128: 12:00:00 | D128: 23.10999966 | E128: 21.69999886 | F128: 22
B129: 2024-11-20 | C129: 13:00:00 | D129: 23.09000015 | E129: 21.52999878 | F129: 22
B130: 2024-11-20 | C130: 14:00:00 | D130: 22.93999958 | E130: 21.5 | F130: 22
B131: 2024-11-20 | C131: 15:00:00 | D131: 23 | E131: 21.63999939 | F131: 22
B132: 2024-11-20 | C132: 16:00:00 | D132: 22.97999954 | E132: 21.65999985 | F132: 22
B133: 2024-11-20 | C133: 17:00:00 | D133: 23.1099987 | E133: 21.6449995 | F133: 22
B134: 2024-11-21 | C134: 09:00:00 | D134: 23.01499939 | E134: 22.05999947 | F134: 22
B135: 2024-11-21 | C135: 10:00:00 | D135: 23.04999924 | E135: 22.25999928 | F135: 22
B136: 2024-11-21 | C136: 11:00:00 | D136: 23.03999996 | E136: 22.17000008 | F136: 22
B137: 2024-11-21 | C137: 12:00:00 | D137: 23.12999916 | E137: 22.2149992 | F137: 22
B138: 2024-11-21 | C138: 13:00:00 | D138: 23.05999947 | E138: 22.3599987 | F138: 22
B139: 2024-11-21 | C139: 14:00:00 | D139: 23.01999855 | E139: 22.44499969 | F139: 22
B140: 2024-11-21 | C140: 15:00:00 | D140: 23.00499916 | E140: 22.59000015 | F140: 22
B141: 2024-11-21 | C141: 16:00:00 | D141: 23.18000031 | E141: 22.4649992 | F141: 22
B142: 2024-11-21 | C142: 17:00:00 | D142: 23.14999962 | E142: 22.30999947 | F142: 22
B143: 2024-11-22 | C143: 09:00:00 | D143: 22.95499992 | E143: 21.85000038 | F143: 22
B144: 2024-11-22 | C144: 10:00:00 | D144: 23 | E144: 21.80499935 | F144: 22
B145: 2024-11-22 | C145: 11:00:00 | D145: 22.88499928 | E145: 21.73999977 | F145: 22
B146: 2024-11-22 | C146: 12:00:00 | D146: 22.73999977 | E146: 21.91999912 | F146: 22
B147: 2024-11-22 | C147: 13:00:00 | D147: 22.81499958 | E147: 21.94999886 | F147: 22
B148: 2024-11-22 | C148: 14:00:00 | D148: 23.09000015 | E148: 22.11999989 | F148: 22
B149: 2024-11-22 | C149: 15:00:00 | D149: 22.86499882 | E149: 22.15999985 | F149: 22
B150: 2024-11-22 | C150: 16:00:00 | D150: 22.88999939 | E150: 22.21999931 | F150: 22
B151: 2024-11-22 | C151: 17:00:00 | D151: 23.0199995 | E151: 22.29999924 | F151: 22
B152: 2024-11-25 | C152: 09:00:00 | D152: 22.72499943 | E152: 21.70999908 | F152: 22
B153: 2024-11-25 | C153: 10:00:00 | D153: 22.65999985 | E153: 21.63999939 | F153: 22
B154: 2024-11-25 | C154: 11:00:00 | D154: 22.80000019 | E154: 21.53999901 | F154: 22
B155: 2024-11-25 | C155: 12:00:00 | D155: 22.81999969 | E155: 21.67999935 | F155: 22
B156: 2024-11-25 | C156: 13:00:00 | D156: 22.77999973 | E156: 21.51000023 | F156: 22
B157: 2024-11-25 | C157: 14:00:00 | D157: 22.73999977 | E157: 21.72499943 | F157: 22
B158: 2024-11-25 | C158: 15:00:00 | D158: 22.77999878 | E158: 21.77999878 | F158: 22
B159: 2024-11-25 | C159: 16:00:00 | D159: 22.70999908 | E159: 21.69499969 | F159: 22
B160: 2024-11-25 | C160: 17:00:00 | D160: 22.78499985 | E160: 21.76000023 | F160: 22
B161: 2024-11-26 | C161: 09:00:00 | D161: 22.71999931 | E161: 21.73999977 | F161: 22
B162: 2024-11-26 | C162: 10:00:00 | D162: 22.73999977 | E162: 21.67000008 | F162: 22
B163: 2024-11-26 | C163: 11:00:00 | D163: 22.68999863 | E163: 21.72499943 | F163: 22
B164: 2024-11-26 | C164: 12:00:00 | D164: 22.76499939 | E164: 21.88999939 | F164: 22
B165: 2024-11-26 | C165: 13:00:00 | D165: 22.78999901 | E165: 21.79499912 | F165: 22
B166: 2024-11-26 | C166: 14:00:00 | D166: 22.79999924 | E166: 21.76000023 | F166: 22
B167: 2024-11-26 | C167: 15:00:00 | D167: 22.87999916 | E167: 21.78999996 | F167: 22
B168: 2024-11-26 | C168: 16:00:00 | D168: 22.77999973 | E168: 21.69999886 | F168: 22
B169: 2024-11-26 | C169: 17:00:00 | D169: 22.80999947 | E169: 21.86499977 | F169: 22
B170: 2024-11-27 | C170: 09:00:00 | D170: 22.46999931 | E170: 21.84000015 | F170: 22
B171: 2024-11-27 | C171: 10:00:00 | D171: 22.40999985 | E171: 21.97999954 | F171: 22
B172: 2024-11-27 | C172: 11:00:00 | D172: 22.19999886 | E172: 21.84000015 | F172: 22
B173: 2024-11-27 | C173: 12:00:00 | D173: 22.26999855 | E173: 21.88000011 | F173: 22
B174: 2024-11-27 | C174: 13:00:00 | D174: 22.24499989 | E174: 21.89999962 | F174: 22
B175: 2024-11-27 | C175: 14:00:00 | D175: 22.14999962 | E175: 21.93999958 | F175: 22
B176: 2024-11-27 | C176: 15:00:00 | D176: 22.0899992 | E176: 22.05999947 | F176: 22
B177: 2024-11-27 | C177: 16:00:00 | D177: 22.02999878 | E177: 22.07999992 | F177: 22
B178: 2024-11-27 | C178: 17:00:00 | D178: 22.05499935 | E178: 22.05999947 | F178: 22
B179: 2024-11-28 | C179: 09:00:00 | D179: 21.9649992 | E179: 21.05999947 | F179: 22
B180: 2024-11-28 | C180: 10:00:00 | D180: 21.76000023 | E180: 21.11499977 | F180: 22
B181: 2024-11-28 | C181: 11:00:00 | D181: 22.05999947 | E181: 21.22999954 | F181: 22
B182: 2024-11-28 | C182: 12:00:00 | D182: 21.93000031 | E182: 21.10999966 | F182: 22
B183: 2024-11-28 | C183: 13:00:00 | D183: 21.91999912 | E183: 21.02000046 | F183: 22
B184: 2024-11-28 | C184: 14:00:00 | D184: 21.70999908 | E184: 21.27999973 | F184: 22
B185: 2024-11-28 | C185: 15:00:00 | D185: 21.85499954 | E185: 21.27999878 | F185: 22
B186: 2024-11-28 | C186: 16:00:00 | D186: 21.81999969 | E186: 21.49999905 | F186: 22
B187: 2024-11-28 | C187: 17:00:00 | D187: 21.8949995 | E187: 21.57999992 | F187: 22
B188: 2024-11-29 | C188: 09:00:00 | D188: 22.04999924 | E188: 21.59000015 | F188: 22
B189: 2024-11-29 | C189: 10:00:00 | D189: 21.82499981 | E189: 21.6099987 | F189: 22
B190: 2024-11-29 | C190: 11:00:00 | D190: 21.76000023 | E190: 21.63999939 | F190: 22
B191: 2024-11-29 | C191: 12:00:00 | D191: 21.67500019 | E191: 21.44999886 | F191: 22
B192: 2024-11-29 | C192: 13:00:00 | D192: 21.40999985 | E192: 21.54999924 | F192: 22
B193: 2024-11-29 | C193: 14:00:00 | D193: 21.28499985 | E193: 21.68999863 | F193: 22
B194: 2024-11-29 | C194: 15:00:00 | D194: 21.37999916 | E194: 21.5899992 | F194: 22
B195: 2024-11-29 | C195: 16:00:00 | D195: 21.46000004 | E195: 21.62999916 | F195: 22
B196: 2024-11-29 | C196: 17:00:00 | D196: 21.36999893 | E196: 21.68999863 | F196: 22
B197: 2024-12-02 | C197: 09:00:00 | D197: 21.44999886 | E197: 21.31999969 | F197: 22
B198: 2024-12-02 | C198: 10:00:00 | D198: 21.42499924 | E198: 21.44999886 | F198: 22
B199: 2024-12-02 | C199: 11:00:00 | D199: 21.38999939 | E199: 21.37999916 | F199: 22
B200: 2024-12-02 | C200: 12:00:00 | D200: 21.29500008 | E200: 21.40999985 | F200: 22
B201: 2024-12-02 | C201: 13:00:00 | D201: 21.34000015 | E201: 21.43499947 | F201: 22
B202: 2024-12-02 | C202: 14:00:00 | D202: 21.31000042 | E202: 21.47999954 | F202: 22
B203: 2024-12-02 | C203: 15:00:00 | D203: 21.09000015 | E203: 21.43999958 | F203: 22
... 2063 more rows

Sheet IE_Level_3
D2: # of Valid Samples | E2: Meets ASHRAE 55 | F2: Hot / Cold | G2: % Meets ASHRAE 55 | H2: Total # of Samples | I2: # of Valid Samples | J2: # Invalid Samples | K2: % Invalid Samples
D3: =H3-J3 -> 6591 | E3: =D3-F3 -> 6371 | F3: 220 | G3: =E3/D3 -> 0.9666211501 | H3: 6777 | I3: =H3-J3 -> 6591 | J3: 186 | K3: =J3/H3 -> 0.02744577247
B5: Step2: Enter Temperature Data
B7: Date | C7: Time | D7: Location 1 | E7: Location 2 | F7: Location 3 | I7: Location 6 | J7: Location 7 | K7: Location 8
B8: 2024-11-01 | C8: 09:00:00 | D8: 21.10499954 | E8: 22.02000046 | F8: 22
B9: 2024-11-01 | C9: 10:00:00 | D9: 21.36999893 | E9: 21.94499969 | F9: 22
B10: 2024-11-01 | C10: 11:00:00 | D10: 21.17500019 | E10: 21.98999977 | F10: 22
B11: 2024-11-01 | C11: 12:00:00 | D11: 21.21999931 | E11: 21.9649992 | F11: 22
B12: 2024-11-01 | C12: 13:00:00 | D12: 21.26499939 | E12: 21.82999992 | F12: 22
B13: 2024-11-01 | C13: 14:00:00 | D13: 21.42000008 | E13: 21.95499992 | F13: 22
B14: 2024-11-01 | C14: 15:00:00 | D14: 21.21000004 | E14: 21.82999992 | F14: 22
B15: 2024-11-01 | C15: 16:00:00 | D15: 21.07999992 | E15: 21.99999905 | F15: 22
B16: 2024-11-01 | C16: 17:00:00 | D16: 21.46999931 | E16: 21.97999954 | F16: 22
B17: 2024-11-04 | C17: 09:00:00 | D17: 22.49499893 | E17: 22.06999969 | F17: 22
B18: 2024-11-04 | C18: 10:00:00 | D18: 22.52999878 | E18: 22.27499962 | F18: 22
B19: 2024-11-04 | C19: 11:00:00 | D19: 22.48499966 | E19: 22.21999931 | F19: 22
B20: 2024-11-04 | C20: 12:00:00 | D20: 22.37999916 | E20: 22.26499939 | F20: 22
B21: 2024-11-04 | C21: 13:00:00 | D21: 22.27499962 | E21: 22.25 | F21: 22
B22: 2024-11-04 | C22: 14:00:00 | D22: 22.27999878 | E22: 22.15499878 | F22: 22
B23: 2024-11-04 | C23: 15:00:00 | D23: 22.07999992 | E23: 22.18999863 | F23: 22
B24: 2024-11-04 | C24: 16:00:00 | D24: 22.10000038 | E24: 22.24999905 | F24: 22
B25: 2024-11-04 | C25: 17:00:00 | D25: 22.15499878 | E25: 22.13999939 | F25: 22
B26: 2024-11-05 | C26: 09:00:00 | D26: 22.06999969 | E26: 22.19499874 | F26: 22
B27: 2024-11-05 | C27: 10:00:00 | D27: 21.88999939 | E27: 22.18999863 | F27: 22
B28: 2024-11-05 | C28: 11:00:00 | D28: 21.85000038 | E28: 22.27499962 | F28: 22
B29: 2024-11-05 | C29: 12:00:00 | D29: 21.93999958 | E29: 22.30999947 | F29: 22
B30: 2024-11-05 | C30: 13:00:00 | D30: 22.13999939 | E30: 22.34499931 | F30: 22
B31: 2024-11-05 | C31: 14:00:00 | D31: 22.11499882 | E31: 22.30999947 | F31: 22
B32: 2024-11-05 | C32: 15:00:00 | D32: 22.18000031 | E32: 22.38499928 | F32: 22
B33: 2024-11-05 | C33: 16:00:00 | D33: 22.13999939 | E33: 22.18000031 | F33: 22
B34: 2024-11-05 | C34: 17:00:00 | D34: 22.04999924 | E34: 22.32999992 | F34: 22
B35: 2024-11-06 | C35: 09:00:00 | D35: 22.14999962 | E35: 22.34000015 | F35: 22
B36: 2024-11-06 | C36: 10:00:00 | D36: 22.11999893 | E36: 22.28999996 | F36: 22
B37: 2024-11-06 | C37: 11:00:00 | D37: 22.05999947 | E37: 22.27999878 | F37: 22
B38: 2024-11-06 | C38: 12:00:00 | D38: 22.20999908 | E38: 22.30999947 | F38: 22
B39: 2024-11-06 | C39: 13:00:00 | D39: 22.05999947 | E39: 22.46999931 | F39: 22
B40: 2024-11-06 | C40: 14:00:00 | D40: 21.93000031 | E40: 22.29499912 | F40: 22
B41: 2024-11-06 | C41: 15:00:00 | D41: 22.06499958 | E41: 22.27999878 | F41: 22
B42: 2024-11-06 | C42: 16:00:00 | D42: 21.96999931 | E42: 22.5199995 | F42: 22
B43: 2024-11-06 | C43: 17:00:00 | D43: 22.00499916 | E43: 22.27999878 | F43: 22
B44: 2024-11-07 | C44: 09:00:00 | D44: 22.10999966 | E44: 21.35000038 | F44: 22
B45: 2024-11-07 | C45: 10:00:00 | D45: 22.10000038 | E45: 21.29999924 | F45: 22
B46: 2024-11-07 | C46: 11:00:00 | D46: 21.92999935 | E46: 21.30999947 | F46: 22
B47: 2024-11-07 | C47: 12:00:00 | D47: 21.92000008 | E47: 21.18499947 | F47: 22
B48: 2024-11-07 | C48: 13:00:00 | D48: 21.94999981 | E48: 21.27000046 | F48: 22
B49: 2024-11-07 | C49: 14:00:00 | D49: 22.06999969 | E49: 21.39000034 | F49: 22
B50: 2024-11-07 | C50: 15:00:00 | D50: 21.90499973 | E50: 21.43000031 | F50: 22
B51: 2024-11-07 | C51: 16:00:00 | D51: 22.01000023 | E51: 21.37499905 | F51: 22
B52: 2024-11-07 | C52: 17:00:00 | D52: 22.03499985 | E52: 21.56999969 | F52: 22
B53: 2024-11-08 | C53: 09:00:00 | D53: 22.14999962 | E53: 22.05500031 | F53: 22
B54: 2024-11-08 | C54: 10:00:00 | D54: 22.26499939 | E54: 22.21999931 | F54: 22
B55: 2024-11-08 | C55: 11:00:00 | D55: 22.15999985 | E55: 22.11999893 | F55: 22
B56: 2024-11-08 | C56: 12:00:00 | D56: 22.03499985 | E56: 22.21999931 | F56: 22
B57: 2024-11-08 | C57: 13:00:00 | D57: 22.21999931 | E57: 22.11999893 | F57: 22
B58: 2024-11-08 | C58: 14:00:00 | D58: 22.11499977 | E58: 21.93999863 | F58: 22
B59: 2024-11-08 | C59: 15:00:00 | D59: 22.09000015 | E59: 22.02999973 | F59: 22
B60: 2024-11-08 | C60: 16:00:00 | D60: 22.17500019 | E60: 21.98999977 | F60: 22
B61: 2024-11-08 | C61: 17:00:00 | D61: 22.06999969 | E61: 22.07499981 | F61: 22
B62: 2024-11-11 | C62: 09:00:00 | D62: 22.70999908 | E62: 22.8949995 | F62: 22
B63: 2024-11-11 | C63: 10:00:00 | D63: 22.7699995 | E63: 22.86999893 | F63: 22
B64: 2024-11-11 | C64: 11:00:00 | D64: 22.8599987 | E64: 22.98499966 | F64: 22
B65: 2024-11-11 | C65: 12:00:00 | D65: 22.73999977 | E65: 22.97999954 | F65: 22
B66: 2024-11-11 | C66: 13:00:00 | D66: 22.88999939 | E66: 23.04999924 | F66: 22
B67: 2024-11-11 | C67: 14:00:00 | D67: 22.75999928 | E67: 22.8599987 | F67: 22
B68: 2024-11-11 | C68: 15:00:00 | D68: 22.75 | E68: 23.04999924 | F68: 22
B69: 2024-11-11 | C69: 16:00:00 | D69: 22.81499958 | E69: 22.96999931 | F69: 22
B70: 2024-11-11 | C70: 17:00:00 | D70: 22.8599987 | E70: 23.10000038 | F70: 22
B71: 2024-11-12 | C71: 09:00:00 | D71: 22.73499966 | E71: 23.05999947 | F71: 22
B72: 2024-11-12 | C72: 10:00:00 | D72: 22.82999992 | E72: 23.08499908 | F72: 22
B73: 2024-11-12 | C73: 11:00:00 | D73: 22.67999935 | E73: 23.15999985 | F73: 22
B74: 2024-11-12 | C74: 12:00:00 | D74: 22.72999954 | E74: 23.12999916 | F74: 22
B75: 2024-11-12 | C75: 13:00:00 | D75: 22.70499992 | E75: 23.18999863 | F75: 22
B76: 2024-11-12 | C76: 14:00:00 | D76: 22.87999916 | E76: 23.25 | F76: 22
B77: 2024-11-12 | C77: 15:00:00 | D77: 22.69999981 | E77: 23.25 | F77: 22
B78: 2024-11-12 | C78: 16:00:00 | D78: 22.57999992 | E78: 23.19499969 | F78: 22
B79: 2024-11-12 | C79: 17:00:00 | D79: 22.55499935 | E79: 23.23999977 | F79: 22
B80: 2024-11-13 | C80: 09:00:00 | D80: 23.10999966 | E80: 0 | F80: 22
B81: 2024-11-13 | C81: 10:00:00 | D81: 22.94999886 | E81: 0 | F81: 22
B82: 2024-11-13 | C82: 11:00:00 | D82: 22.93999958 | E82: 0 | F82: 22
B83: 2024-11-13 | C83: 12:00:00 | D83: 23.13999939 | E83: 0 | F83: 22
B84: 2024-11-13 | C84: 13:00:00 | D84: 23.09999943 | E84: 0 | F84: 22
B85: 2024-11-13 | C85: 14:00:00 | D85: 23.04999924 | E85: 0 | F85: 22
B86: 2024-11-13 | C86: 15:00:00 | D86: 22.97999954 | E86: 0 | F86: 22
B87: 2024-11-13 | C87: 16:00:00 | D87: 22.96999931 | E87: 0 | F87: 22
B88: 2024-11-13 | C88: 17:00:00 | D88: 22.99999905 | E88: 0 | F88: 22
B89: 2024-11-14 | C89: 09:00:00 | D89: 23.18000031 | E89: 0 | F89: 22
B90: 2024-11-14 | C90: 10:00:00 | D90: 23.01500034 | E90: 0 | F90: 22
B91: 2024-11-14 | C91: 11:00:00 | D91: 22.90999985 | E91: 0 | F91: 22
B92: 2024-11-14 | C92: 12:00:00 | D92: 22.95999908 | E92: 0 | F92: 22
B93: 2024-11-14 | C93: 13:00:00 | D93: 23.09000015 | E93: 0 | F93: 22
B94: 2024-11-14 | C94: 14:00:00 | D94: 22.91499996 | E94: 0 | F94: 22
B95: 2024-11-14 | C95: 15:00:00 | D95: 22.93000031 | E95: 0 | F95: 22
B96: 2024-11-14 | C96: 16:00:00 | D96: 22.81999874 | E96: 0 | F96: 22
B97: 2024-11-14 | C97: 17:00:00 | D97: 22.96999931 | E97: 0 | F97: 22
B98: 2024-11-15 | C98: 09:00:00 | D98: 22.88500023 | E98: 0 | F98: 22
B99: 2024-11-15 | C99: 10:00:00 | D99: 22.86999893 | E99: 0 | F99: 22
B100: 2024-11-15 | C100: 11:00:00 | D100: 22.85499954 | E100: 0 | F100: 22
B101: 2024-11-15 | C101: 12:00:00 | D101: 22.88999939 | E101: 0 | F101: 22
B102: 2024-11-15 | C102: 13:00:00 | D102: 22.80999947 | E102: 0 | F102: 22
B103: 2024-11-15 | C103: 14:00:00 | D103: 22.80999947 | E103: 0 | F103: 22
B104: 2024-11-15 | C104: 15:00:00 | D104: 22.79499912 | E104: 0 | F104: 22
B105: 2024-11-15 | C105: 16:00:00 | D105: 22.87999916 | E105: 0 | F105: 22
B106: 2024-11-15 | C106: 17:00:00 | D106: 22.83499908 | E106: 0 | F106: 22
B107: 2024-11-18 | C107: 09:00:00 | D107: 22.91999912 | E107: 21.65999985 | F107: 22
B108: 2024-11-18 | C108: 10:00:00 | D108: 22.94999886 | E108: 21.74499989 | F108: 22
B109: 2024-11-18 | C109: 11:00:00 | D109: 22.82999992 | E109: 21.71999931 | F109: 22
B110: 2024-11-18 | C110: 12:00:00 | D110: 22.93999863 | E110: 21.80499935 | F110: 22
B111: 2024-11-18 | C111: 13:00:00 | D111: 22.83499908 | E111: 21.77999878 | F111: 22
B112: 2024-11-18 | C112: 14:00:00 | D112: 22.8599987 | E112: 21.75 | F112: 22
B113: 2024-11-18 | C113: 15:00:00 | D113: 22.71999931 | E113: 21.68999863 | F113: 22
B114: 2024-11-18 | C114: 16:00:00 | D114: 22.78999901 | E114: 21.62999916 | F114: 22
B115: 2024-11-18 | C115: 17:00:00 | D115: 22.77499962 | E115: 21.68000031 | F115: 22
B116: 2024-11-19 | C116: 09:00:00 | D116: 22.86999989 | E116: 21.44999886 | F116: 22
B117: 2024-11-19 | C117: 10:00:00 | D117: 22.69999886 | E117: 21.42000008 | F117: 22
B118: 2024-11-19 | C118: 11:00:00 | D118: 22.72499943 | E118: 21.51000023 | F118: 22
B119: 2024-11-19 | C119: 12:00:00 | D119: 22.69999886 | E119: 21.40999889 | F119: 22
B120: 2024-11-19 | C120: 13:00:00 | D120: 22.8399992 | E120: 21.40999985 | F120: 22
B121: 2024-11-19 | C121: 14:00:00 | D121: 22.75 | E121: 21.36999989 | F121: 22
B122: 2024-11-19 | C122: 15:00:00 | D122: 22.77499962 | E122: 21.35000038 | F122: 22
B123: 2024-11-19 | C123: 16:00:00 | D123: 22.93999863 | E123: 21.42500019 | F123: 22
B124: 2024-11-19 | C124: 17:00:00 | D124: 23.0899992 | E124: 21.48999977 | F124: 22
B125: 2024-11-20 | C125: 09:00:00 | D125: 23.13999939 | E125: 21.57999897 | F125: 22
B126: 2024-11-20 | C126: 10:00:00 | D126: 23.15499973 | E126: 21.53999901 | F126: 22
B127: 2024-11-20 | C127: 11:00:00 | D127: 23 | E127: 21.55999947 | F127: 22
B128: 2024-11-20 | C128: 12:00:00 | D128: 23.10999966 | E128: 21.69999886 | F128: 22
B129: 2024-11-20 | C129: 13:00:00 | D129: 23.09000015 | E129: 21.52999878 | F129: 22
B130: 2024-11-20 | C130: 14:00:00 | D130: 22.93999958 | E130: 21.5 | F130: 22
B131: 2024-11-20 | C131: 15:00:00 | D131: 23 | E131: 21.63999939 | F131: 22
B132: 2024-11-20 | C132: 16:00:00 | D132: 22.97999954 | E132: 21.65999985 | F132: 22
B133: 2024-11-20 | C133: 17:00:00 | D133: 23.1099987 | E133: 21.6449995 | F133: 22
B134: 2024-11-21 | C134: 09:00:00 | D134: 23.01499939 | E134: 22.05999947 | F134: 22
B135: 2024-11-21 | C135: 10:00:00 | D135: 23.04999924 | E135: 22.25999928 | F135: 22
B136: 2024-11-21 | C136: 11:00:00 | D136: 23.03999996 | E136: 22.17000008 | F136: 22
B137: 2024-11-21 | C137: 12:00:00 | D137: 23.12999916 | E137: 22.2149992 | F137: 22
B138: 2024-11-21 | C138: 13:00:00 | D138: 23.05999947 | E138: 22.3599987 | F138: 22
B139: 2024-11-21 | C139: 14:00:00 | D139: 23.01999855 | E139: 22.44499969 | F139: 22
B140: 2024-11-21 | C140: 15:00:00 | D140: 23.00499916 | E140: 22.59000015 | F140: 22
B141: 2024-11-21 | C141: 16:00:00 | D141: 23.18000031 | E141: 22.4649992 | F141: 22
B142: 2024-11-21 | C142: 17:00:00 | D142: 23.14999962 | E142: 22.30999947 | F142: 22
B143: 2024-11-22 | C143: 09:00:00 | D143: 22.95499992 | E143: 21.85000038 | F143: 22
B144: 2024-11-22 | C144: 10:00:00 | D144: 23 | E144: 21.80499935 | F144: 22
B145: 2024-11-22 | C145: 11:00:00 | D145: 22.88499928 | E145: 21.73999977 | F145: 22
B146: 2024-11-22 | C146: 12:00:00 | D146: 22.73999977 | E146: 21.91999912 | F146: 22
B147: 2024-11-22 | C147: 13:00:00 | D147: 22.81499958 | E147: 21.94999886 | F147: 22
B148: 2024-11-22 | C148: 14:00:00 | D148: 23.09000015 | E148: 22.11999989 | F148: 22
B149: 2024-11-22 | C149: 15:00:00 | D149: 22.86499882 | E149: 22.15999985 | F149: 22
B150: 2024-11-22 | C150: 16:00:00 | D150: 22.88999939 | E150: 22.21999931 | F150: 22
B151: 2024-11-22 | C151: 17:00:00 | D151: 23.0199995 | E151: 22.29999924 | F151: 22
B152: 2024-11-25 | C152: 09:00:00 | D152: 22.72499943 | E152: 21.70999908 | F152: 22
B153: 2024-11-25 | C153: 10:00:00 | D153: 22.65999985 | E153: 21.63999939 | F153: 22
B154: 2024-11-25 | C154: 11:00:00 | D154: 22.80000019 | E154: 21.53999901 | F154: 22
B155: 2024-11-25 | C155: 12:00:00 | D155: 22.81999969 | E155: 21.67999935 | F155: 22
B156: 2024-11-25 | C156: 13:00:00 | D156: 22.77999973 | E156: 21.51000023 | F156: 22
B157: 2024-11-25 | C157: 14:00:00 | D157: 22.73999977 | E157: 21.72499943 | F157: 22
B158: 2024-11-25 | C158: 15:00:00 | D158: 22.77999878 | E158: 21.77999878 | F158: 22
B159: 2024-11-25 | C159: 16:00:00 | D159: 22.70999908 | E159: 21.69499969 | F159: 22
B160: 2024-11-25 | C160: 17:00:00 | D160: 22.78499985 | E160: 21.76000023 | F160: 22
B161: 2024-11-26 | C161: 09:00:00 | D161: 22.71999931 | E161: 21.73999977 | F161: 22
B162: 2024-11-26 | C162: 10:00:00 | D162: 22.73999977 | E162: 21.67000008 | F162: 22
B163: 2024-11-26 | C163: 11:00:00 | D163: 22.68999863 | E163: 21.72499943 | F163: 22
B164: 2024-11-26 | C164: 12:00:00 | D164: 22.76499939 | E164: 21.88999939 | F164: 22
B165: 2024-11-26 | C165: 13:00:00 | D165: 22.78999901 | E165: 21.79499912 | F165: 22
B166: 2024-11-26 | C166: 14:00:00 | D166: 22.79999924 | E166: 21.76000023 | F166: 22
B167: 2024-11-26 | C167: 15:00:00 | D167: 22.87999916 | E167: 21.78999996 | F167: 22
B168: 2024-11-26 | C168: 16:00:00 | D168: 22.77999973 | E168: 21.69999886 | F168: 22
B169: 2024-11-26 | C169: 17:00:00 | D169: 22.80999947 | E169: 21.86499977 | F169: 22
B170: 2024-11-27 | C170: 09:00:00 | D170: 22.46999931 | E170: 21.84000015 | F170: 22
B171: 2024-11-27 | C171: 10:00:00 | D171: 22.40999985 | E171: 21.97999954 | F171: 22
B172: 2024-11-27 | C172: 11:00:00 | D172: 22.19999886 | E172: 21.84000015 | F172: 22
B173: 2024-11-27 | C173: 12:00:00 | D173: 22.26999855 | E173: 21.88000011 | F173: 22
B174: 2024-11-27 | C174: 13:00:00 | D174: 22.24499989 | E174: 21.89999962 | F174: 22
B175: 2024-11-27 | C175: 14:00:00 | D175: 22.14999962 | E175: 21.93999958 | F175: 22
B176: 2024-11-27 | C176: 15:00:00 | D176: 22.0899992 | E176: 22.05999947 | F176: 22
B177: 2024-11-27 | C177: 16:00:00 | D177: 22.02999878 | E177: 22.07999992 | F177: 22
B178: 2024-11-27 | C178: 17:00:00 | D178: 22.05499935 | E178: 22.05999947 | F178: 22
B179: 2024-11-28 | C179: 09:00:00 | D179: 21.9649992 | E179: 21.05999947 | F179: 22
B180: 2024-11-28 | C180: 10:00:00 | D180: 21.76000023 | E180: 21.11499977 | F180: 22
B181: 2024-11-28 | C181: 11:00:00 | D181: 22.05999947 | E181: 21.22999954 | F181: 22
B182: 2024-11-28 | C182: 12:00:00 | D182: 21.93000031 | E182: 21.10999966 | F182: 22
B183: 2024-11-28 | C183: 13:00:00 | D183: 21.91999912 | E183: 21.02000046 | F183: 22
B184: 2024-11-28 | C184: 14:00:00 | D184: 21.70999908 | E184: 21.27999973 | F184: 22
B185: 2024-11-28 | C185: 15:00:00 | D185: 21.85499954 | E185: 21.27999878 | F185: 22
B186: 2024-11-28 | C186: 16:00:00 | D186: 21.81999969 | E186: 21.49999905 | F186: 22
B187: 2024-11-28 | C187: 17:00:00 | D187: 21.8949995 | E187: 21.57999992 | F187: 22
B188: 2024-11-29 | C188: 09:00:00 | D188: 22.04999924 | E188: 21.59000015 | F188: 22
B189: 2024-11-29 | C189: 10:00:00 | D189: 21.82499981 | E189: 21.6099987 | F189: 22
B190: 2024-11-29 | C190: 11:00:00 | D190: 21.76000023 | E190: 21.63999939 | F190: 22
B191: 2024-11-29 | C191: 12:00:00 | D191: 21.67500019 | E191: 21.44999886 | F191: 22
B192: 2024-11-29 | C192: 13:00:00 | D192: 21.40999985 | E192: 21.54999924 | F192: 22
B193: 2024-11-29 | C193: 14:00:00 | D193: 21.28499985 | E193: 21.68999863 | F193: 22
B194: 2024-11-29 | C194: 15:00:00 | D194: 21.37999916 | E194: 21.5899992 | F194: 22
B195: 2024-11-29 | C195: 16:00:00 | D195: 21.46000004 | E195: 21.62999916 | F195: 22
B196: 2024-11-29 | C196: 17:00:00 | D196: 21.36999893 | E196: 21.68999863 | F196: 22
B197: 2024-12-02 | C197: 09:00:00 | D197: 21.44999886 | E197: 21.31999969 | F197: 22
B198: 2024-12-02 | C198: 10:00:00 | D198: 21.42499924 | E198: 21.44999886 | F198: 22
B199: 2024-12-02 | C199: 11:00:00 | D199: 21.38999939 | E199: 21.37999916 | F199: 22
B200: 2024-12-02 | C200: 12:00:00 | D200: 21.29500008 | E200: 21.40999985 | F200: 22
B201: 2024-12-02 | C201: 13:00:00 | D201: 21.34000015 | E201: 21.43499947 | F201: 22
B202: 2024-12-02 | C202: 14:00:00 | D202: 21.31000042 | E202: 21.47999954 | F202: 22
B203: 2024-12-02 | C203: 15:00:00 | D203: 21.09000015 | E203: 21.43999958 | F203: 22
... 2063 more rows
